{"text_format":"2","workbook":"xlsx","n_sheets":2,"sheets":["Sheet1","资产ID范围管理"],"not_rendered":{"charts":0,"images":0,"macros":0,"external_links":0,"defined_names":1,"comments":1,"pivot_tables":0},"unopened":[],"bounds":{"document_bytes":16777216,"sheet_cells":100000,"run_cost":"one","rows_first":2000,"rows_last":500,"rows_between":2000,"halvings":0,"cell_chars":16384,"cell_head_chars":4096},"cells_cut":0,"cells_raw":0,"read":"whole","date_system":"1900"}

{"sheet":"Sheet1","index":0,"n_rows":454,"n_cols":21,"rows_kept":454,"cut":false,"hidden":false,"merged":[]}
["ID","道具名称Lang","道具名称","备注","解析类型","获得途径","快捷购买","道具类型","二级类型","是否可使用","是否可出售","出售价格","是否出售确认","品质","是否绑定","跑马灯","道具图标","道具小图标","是否展示材质","道具描述Lang","道具描述"]
[1,{"$f":"\"Item_name_\"&A2","v":"Item_name_1"},"银币","游戏中的主要货币，类似《三战》的铜钱",0,"[0,1,2]",1,1,{"$nulls":5},3,null,null,"icon_item_silver","icon_item_silver",null,"Item_desc_1"]
[2,{"$f":"\"Item_name_\"&A3","v":"Item_name_2"},"金币","充值的货币",0,"[0,1,2]",1,1,{"$nulls":5},4,null,null,"icon_item_gold","icon_item_gold",null,"Item_desc_2"]
[3,{"$f":"\"Item_name_\"&A4","v":"Item_name_3"},"F币","区块币",0,"[0,1,2]",0,1,{"$nulls":5},5,null,null,"icon_item_fcoin","icon_item_fcoin",null,"Item_desc_3"]
[4,{"$f":"\"Item_name_\"&A5","v":"Item_name_4"},"绑金","绑定的金币",0,"[0,1,2]",0,1,{"$nulls":5},4,null,null,"icon_item_gold","icon_item_gold",null,"Item_desc_4"]
[5,{"$f":"\"Item_name_\"&A6","v":"Item_name_5"},"精力","pve战斗消耗",0,"[0,1,2]",1,1,{"$nulls":5},3,null,null,"icon_item_energy","icon_item_energy",null,"Item_desc_5"]
[6,{"$f":"\"Item_name_\"&A7","v":"Item_name_6"},"药剂","医馆治疗消耗",0,"[0,1,2]",1,1,{"$nulls":5},3,null,null,"icon_item_clinic","icon_item_clinic",null,"Item_desc_6"]
[7,{"$f":"\"Item_name_\"&A8","v":"Item_name_7"},"存储精力","补充精力",0,"[0,1,2]",1,1,{"$nulls":5},3,null,null,"icon_item_energy","icon_item_energy",null,"Item_desc_7"]
[101,{"$f":"\"Item_name_\"&A9","v":"Item_name_101"},"木材","木材",0,"[0,1,2]",0,1,1,{"$nulls":4},1,null,null,"icon_item_wood","Map_icon_mc",null,"Item_desc_101"]
[102,"Item_name_102","铁矿","铁矿",0,"[0,1,2]",0,1,2,{"$nulls":4},1,null,null,"icon_item_iron","Map_icon_tk",null,"Item_desc_102"]
[103,"Item_name_103","石料","石料",0,"[0,1,2]",0,1,3,{"$nulls":4},1,null,null,"icon_item_stone","Map_icon_sc",null,"Item_desc_103"]
[104,"Item_name_104","粮食","粮食",0,"[0,1,2,3]",0,1,4,{"$nulls":4},1,null,null,"icon_item_food","Map_icon_ls",null,"Item_desc_104"]
[111,"Item_name_111","木材（非绑定）","木材",0,"[0,1,2]",0,1,1,{"$nulls":4},1,null,null,"icon_item_wood","Map_icon_mc",null,{"$f":"\"Item_desc_\"&A13","v":"Item_desc_111"}]
[112,"Item_name_112","铁矿（非绑定）","铁矿",0,"[0,1,2]",0,1,2,{"$nulls":4},1,null,null,"icon_item_iron","Map_icon_tk",null,{"$f":"\"Item_desc_\"&A14","v":"Item_desc_112"}]
[113,"Item_name_113","石料（非绑定）","石料",0,"[0,1,2]",0,1,3,{"$nulls":4},1,null,null,"icon_item_stone","Map_icon_sc",null,{"$f":"\"Item_desc_\"&A15","v":"Item_desc_113"}]
[114,"Item_name_114","粮食（非绑定）","粮食",0,"[0,1,2,3]",0,1,4,{"$nulls":4},1,null,null,"icon_item_food","Map_icon_ls",null,{"$f":"\"Item_desc_\"&A16","v":"Item_desc_114"}]
[201,"Item_name_201","民兵","民兵",0,null,null,0,{"$nulls":5},1,null,null,"icon_item_201",null,null,"Item_desc_201"]
[202,"Item_name_202","老练士兵","精锐兵1",0,null,null,0,{"$nulls":5},2,null,null,"icon_item_201",null,null,"Item_desc_202"]
[203,"Item_name_203","资深士兵","精锐兵2",0,null,null,0,{"$nulls":5},3,null,null,"icon_item_201",null,null,"Item_desc_203"]
[204,"Item_name_204","百战士兵","精锐兵3",0,null,null,0,{"$nulls":5},4,null,null,"icon_item_201",null,null,"Item_desc_204"]
[205,"Item_name_205","无畏士兵","精锐兵4",0,null,null,0,{"$nulls":5},5,null,null,"icon_item_201",null,null,"Item_desc_205"]
[206,"Item_name_206","传奇士兵","精锐兵5",0,null,null,0,{"$nulls":5},6,null,1,"icon_item_201",null,null,"Item_desc_206"]
[1001,"Item_name_1001","赛季成就积分","赛季成就积分",0,null,null,0,{"$nulls":5},4,null,null,"icon_item_100011",null,null,"Item_desc_1001"]
[1002,"Item_name_1002","个人成就积分","个人成就积分",0,null,null,0,{"$nulls":5},4,null,null,"icon_item_100011",null,null,"Item_desc_1002"]
[1003,"Item_name_1003","充值积分","充值积分",0,null,null,0,{"$nulls":5},4,null,null,"icon_item_100011",null,null,"Item_desc_1003"]
[10001,"Item_name_10001","领主经验","领主经验",100,null,null,0,{"$nulls":5},3,null,null,"icon_item_10001",null,null,"Item_desc_10001"]
[10002,"Item_name_10002","帝国晶矿","帝国晶矿",0,null,null,0,{"$nulls":5},3,null,null,"icon_zhucheng_exp","Map_icon_zhucheng_exp",null,"Item_desc_10001"]
[10003,"Item_name_10003","VIP点数","VIP点数",101,null,null,0,{"$nulls":5},3,null,null,"icon_item_10001",null,null,"Item_desc_10001"]
[10004,{"$f":"\"Item_name_\"&A29","v":"Item_name_10004"},"VIP天数","VIP天数",102,null,null,0,{"$nulls":5},3,null,null,"icon_item_10001",null,null,"Item_desc_10001"]
[10101,"Item_name_10101","玩家个人赛季积分","玩家个人赛季积分",0,null,null,0,{"$nulls":5},3,null,null,"icon_item_10001",null,null,"Item_desc_10001"]
[10102,"Item_name_10102","玩家个人贡献","玩家个人贡献",0,null,null,0,{"$nulls":5},3,null,null,"icon_item_10102",null,null,"Item_desc_10001"]
[10103,"Item_name_10103","玩家个人荣誉点","玩家个人荣誉点",0,null,null,0,{"$nulls":5},3,null,null,"icon_item_10001",null,null,"Item_desc_10001"]
[10104,"Item_name_10104","玩家个人功勋","玩家个人荣誉点",0,null,null,0,{"$nulls":5},3,null,null,"icon_item_10104",null,null,"Item_desc_10001"]
[20001,"Item_name_20001","联盟经验","联盟经验",0,null,null,0,{"$nulls":5},3,null,null,"icon_item_20001",null,null,"Item_desc_10001"]
[20101,"Item_name_20101","联盟赛季积分","联盟赛季积分",0,null,null,0,{"$nulls":5},3,null,null,"icon_item_10001",null,null,"Item_desc_10001"]
[20201,"Item_name_20201","联盟木材","联盟木材",0,"[0,1,2]",0,0,{"$nulls":5},1,null,null,"icon_item_woodlm",null,null,"Item_desc_101"]
[20202,"Item_name_20202","联盟铁矿","联盟铁矿",0,"[0,1,2]",0,0,{"$nulls":5},1,null,null,"icon_item_ironlm",null,null,"Item_desc_102"]
[20203,"Item_name_20203","联盟石料","联盟石料",0,"[0,1,2]",0,0,{"$nulls":5},1,null,null,"icon_item_stonelm",null,null,"Item_desc_103"]
[20204,"Item_name_20204","联盟粮食","联盟粮食",0,"[0,1,2,3]",0,0,{"$nulls":5},1,null,null,"icon_item_foodlm",null,null,"Item_desc_104"]
[20205,"Item_name_20205","联盟F币","联盟区块币",0,"[0,1,2]",0,0,{"$nulls":5},5,null,null,"icon_item_fcoin",null,null,"Item_desc_3"]
[100005,"Item_name_100005","远古残页","橙色随机图纸",1,null,null,4,5,{"$nulls":4},6,null,1,"icon_item_100005",null,null,{"$f":"\"Item_desc_\"&A41","v":"Item_desc_100005"},"远古残页"]
[100006,"Item_name_100005","暗金图纸碎片","暗金图纸碎片",1,null,null,4,5,{"$nulls":4},6,null,1,"icon_item_100005",null,null,"Item_desc_100006","暗金图纸碎片"]
[100011,{"$f":"\"Item_name_\"&A43","v":"Item_name_100011"},"锻铁武器图","蓝色武器图纸",1,null,null,4,5,{"$nulls":4},3,null,null,"icon_item_100011",null,null,{"$f":"\"Item_desc_\"&A43","v":"Item_desc_100011"},"锻铁工艺图"]
[100012,"Item_name_100012","锻铁头盔图","蓝色头盔图纸",1,null,null,4,5,{"$nulls":4},3,null,null,"icon_item_100012",null,null,"Item_desc_100012"]
[100013,"Item_name_100013","锻铁护甲图","蓝色护甲图纸",1,null,null,4,5,{"$nulls":4},3,null,null,"icon_item_100013",null,null,"Item_desc_100013"]
[100014,"Item_name_100014","锻铁战靴图","蓝色战靴图纸",1,null,null,4,5,{"$nulls":4},3,null,null,"icon_item_100014",null,null,"Item_desc_100014"]
[100021,"Item_name_100021","秘银武器图","紫色武器图纸",1,null,null,4,5,{"$nulls":4},4,null,null,"icon_item_100021",null,null,"Item_desc_100021","秘银工艺图"]
[100022,"Item_name_100022","秘银头盔图","紫色头盔图纸",1,null,null,4,5,{"$nulls":4},4,null,null,"icon_item_100022",null,null,"Item_desc_100022"]
[100023,"Item_name_100023","秘银护甲图","紫色护甲图纸",1,null,null,4,5,{"$nulls":4},4,null,null,"icon_item_100023",null,null,"Item_desc_100023"]
[100024,"Item_name_100024","秘银战靴图","紫色战靴图纸",1,null,null,4,5,{"$nulls":4},4,null,null,"icon_item_100024",null,null,"Item_desc_100024"]
[100031,"Item_name_100031","烈焰武器图","橙色武器图纸",1,null,null,4,5,{"$nulls":4},5,null,null,"icon_item_100031",null,null,"Item_desc_100031","烈焰工艺图"]
[100032,"Item_name_100032","烈焰头盔图","橙色头盔图纸",1,null,null,4,5,{"$nulls":4},5,null,null,"icon_item_100032",null,null,"Item_desc_100032"]
[100033,"Item_name_100033","烈焰护甲图","橙色护甲图纸",1,null,null,4,5,{"$nulls":4},5,null,null,"icon_item_100033",null,null,"Item_desc_100033"]
[100034,"Item_name_100034","烈焰战靴图","橙色战靴图纸",1,null,null,4,5,{"$nulls":4},5,null,null,"icon_item_100034",null,null,"Item_desc_100034"]
[100101,"Item_name_100101","锻铁锭","装备打造材料（蓝）",1,null,null,4,6,{"$nulls":4},3,null,null,"icon_item_100101",null,null,"Item_desc_100101","锻铁锭"]
[100102,"Item_name_100102","秘银锭","装备打造材料（紫）",1,null,null,4,6,{"$nulls":4},4,null,null,"icon_item_100102",null,null,"Item_desc_100102","秘银锭"]
[100103,"Item_name_100103","炎龙精钢","装备打造材料（橙）",1,null,null,4,6,{"$nulls":4},5,null,null,"icon_item_100103",null,null,"Item_desc_100103","炎龙精钢"]
[100104,"Item_name_100104","圣光合金","装备打造材料（金）",1,null,null,4,6,{"$nulls":4},6,null,1,"icon_item_100104",null,null,"Item_desc_100104","圣光合金"]
[100201,"Item_name_100201","粗制磨石","装备强化石（白）",1,null,null,4,7,{"$nulls":4},1,null,null,"icon_item_100201",null,null,"Item_desc_100201","蕴含自然之力，可增强装备性能"]
[100202,"Item_name_100202","翡翠淬石","装备强化石（绿）",1,null,null,4,7,{"$nulls":4},2,null,null,"icon_item_100202",null,null,"Item_desc_100202","闪耀魔力光辉，可增强装备性能"]
[100203,"Item_name_100203","蓝晶灵石","装备强化石（蓝）",1,null,null,4,7,{"$nulls":4},3,null,null,"icon_item_100203",null,null,"Item_desc_100203","蕴藏古老符文，可增强装备性能"]
[100204,"Item_name_100204","秘制魔石","装备强化石（紫）",1,null,null,4,7,{"$nulls":4},4,null,null,"icon_item_100204",null,null,"Item_desc_100204","燃烧不息的火石，可增强装备性能"]
[100205,"Item_name_100205","烈焰熔石","装备强化石（橙）",1,null,null,4,7,{"$nulls":4},5,null,null,"icon_item_100205",null,null,"Item_desc_100205","传说中的神圣材料，可增强装备性能"]
[100206,"Item_name_100206","圣辉天石","装备强化石（金）",1,null,null,4,7,{"$nulls":4},6,null,1,"icon_item_100206",null,null,"Item_desc_100206","源自巨龙之脉的罕见矿石，极其珍贵"]
[100301,"Item_name_100301","粗铁矿","1级矿石",1,null,null,2,{"$nulls":5},2,null,null,"icon_item_100201",null,null,"Item_desc_100301","常见矿石，适合冶炼低阶装备"]
[100302,"Item_name_100302","硬铜矿","2级矿石",1,null,null,2,{"$nulls":5},3,null,null,"icon_item_100202",null,null,"Item_desc_100302","常见矿石，适合冶炼低阶装备"]
[100303,"Item_name_100303","秘银矿","3级矿石",1,null,null,2,{"$nulls":5},4,null,null,"icon_item_100203",null,null,"Item_desc_100303","稀有矿石，适合冶炼中阶装备"]
[100304,"Item_name_100304","星辉矿","4级矿石",1,null,null,2,{"$nulls":5},5,null,null,"icon_item_100204",null,null,"Item_desc_100304","特殊矿石，蕴含神秘力量"]
[100305,"Item_name_100305","龙心矿","5级矿石",1,null,null,2,{"$nulls":5},6,null,1,"icon_item_100205",null,null,"Item_desc_100305","源自巨龙之脉的罕见矿石，极其珍贵"]
[100411,"Item_name_100411","重铸石（白）","重铸石（白）",1,null,null,4,{"$nulls":5},1,null,null,"icon_item_100411",null,null,"Item_desc_100411","重铸石（白）"]
[100412,"Item_name_100412","重铸石（绿）","重铸石（绿）",1,null,null,4,{"$nulls":5},2,null,null,"icon_item_100412",null,null,"Item_desc_100412","重铸石（绿）"]
[100413,"Item_name_100413","重铸石（蓝）","重铸石（蓝）",1,null,null,4,{"$nulls":5},3,null,null,"icon_item_100413",null,null,"Item_desc_100413","重铸石（蓝）"]
[100414,"Item_name_100414","重铸石（紫）","重铸石（紫）",1,null,null,4,{"$nulls":5},4,null,null,"icon_item_100414",null,null,"Item_desc_100414","重铸石（紫）"]
[100415,"Item_name_100415","重铸石（橙）","重铸石（橙）",1,null,null,4,{"$nulls":5},5,null,null,"icon_item_100415",null,null,"Item_desc_100415","重铸石（橙）"]
[100416,{"$f":"\"Item_name_\"&A75","v":"Item_name_100416"},"重铸石（金）","重铸石（金）",1,null,null,4,{"$nulls":5},5,null,null,"icon_item_100415",null,null,{"$f":"\"Item_desc_\"&A75","v":"Item_desc_100416"},"重铸石（金）"]
[100421,"Item_name_100421","洗练石（白）","洗练石（白）",1,null,null,4,{"$nulls":5},1,null,null,"icon_item_100421",null,null,"Item_desc_100421","洗练石（白）"]
[100422,"Item_name_100422","洗练石（绿）","洗练石（绿）",1,null,null,4,{"$nulls":5},2,null,null,"icon_item_100422",null,null,"Item_desc_100422","洗练石（绿）"]
[100423,"Item_name_100423","洗练石（蓝）","洗练石（蓝）",1,null,null,4,{"$nulls":5},3,null,null,"icon_item_equ_refine01",null,null,"Item_desc_100423","洗练石（蓝）"]
[100424,"Item_name_100424","洗练石（紫）","洗练石（紫）",1,null,null,4,{"$nulls":5},4,null,null,"icon_item_equ_refine02",null,null,"Item_desc_100424","洗练石（紫）"]
[100425,"Item_name_100425","洗练石（橙）","洗练石（橙）",1,null,null,4,{"$nulls":5},5,null,null,"icon_item_equ_refine03",null,null,"Item_desc_100425","洗练石（橙）"]
[100426,"Item_name_100426","洗练石（金）","洗练石（金）",1,null,null,4,{"$nulls":5},5,null,null,"icon_item_equ_refine04",null,null,"Item_desc_100426","洗练石（金）"]
[100501,"Item_name_100501","技能升级书","技能升级书",1,null,null,2,{"$nulls":5},4,null,null,"icon_item_100501",null,null,"Item_desc_100501","技能升级书"]
[100502,"Item_name_100502","天赋升级书","天赋升级书",1,null,null,2,{"$nulls":5},5,null,null,"icon_item_100502",null,null,"Item_desc_100502","天赋升级书"]
[100601,"Item_name_100601","秦始皇武器-图纸","承天龙渊",1,null,null,4,5,{"$nulls":4},6,null,1,"icon_item_100031",null,null,"Item_desc_100601","秦始皇武器-图纸"]
[100602,"Item_name_100602","秦始皇头盔-图纸","十二天冕",1,null,null,4,5,{"$nulls":4},6,null,1,"icon_item_100032",null,null,"Item_desc_100602","秦始皇头盔-图纸"]
[100603,"Item_name_100603","秦始皇护甲-图纸","玄龙御甲",1,null,null,4,5,{"$nulls":4},6,null,1,"icon_item_100033",null,null,"Item_desc_100603","秦始皇护甲-图纸"]
[100604,"Item_name_100604","秦始皇战靴-图纸","云纹天履",1,null,null,4,5,{"$nulls":4},6,null,1,"icon_item_100034",null,null,"Item_desc_100604","秦始皇战靴-图纸"]
[100605,"Item_name_100605","李舜臣武器-图纸","龟舰战刃",1,null,null,4,5,{"$nulls":4},6,null,1,"icon_item_100031",null,null,"Item_desc_100605","李舜臣武器-图纸"]
[100606,"Item_name_100606","李舜臣头盔-图纸","海魂战盔",1,null,null,4,5,{"$nulls":4},6,null,1,"icon_item_100032",null,null,"Item_desc_100606","李舜臣头盔-图纸"]
[100607,"Item_name_100607","李舜臣护甲-图纸","护国海甲",1,null,null,4,5,{"$nulls":4},6,null,1,"icon_item_100033",null,null,"Item_desc_100607","李舜臣护甲-图纸"]
[100608,"Item_name_100608","李舜臣战靴-图纸","水军战靴",1,null,null,4,5,{"$nulls":4},6,null,1,"icon_item_100034",null,null,"Item_desc_100608","李舜臣战靴-图纸"]
[100609,"Item_name_100609","居鲁士大帝武器-图纸","波斯王刃",1,null,null,4,5,{"$nulls":4},6,null,1,"icon_item_100031",null,null,"Item_desc_100609","居鲁士大帝武器-图纸"]
[100610,"Item_name_100610","居鲁士大帝头盔-图纸","旭日王盔",1,null,null,4,5,{"$nulls":4},6,null,1,"icon_item_100032",null,null,"Item_desc_100610","居鲁士大帝头盔-图纸"]
[100611,"Item_name_100611","居鲁士大帝护甲-图纸","波斯王甲",1,null,null,4,5,{"$nulls":4},6,null,1,"icon_item_100033",null,null,"Item_desc_100611","居鲁士大帝护甲-图纸"]
[100612,"Item_name_100612","居鲁士大帝战靴-图纸","王庭战靴",1,null,null,4,5,{"$nulls":4},6,null,1,"icon_item_100034",null,null,"Item_desc_100612","居鲁士大帝战靴-图纸"]
[100613,"Item_name_100613","阿育王武器-图纸","法轮之剑",1,null,null,4,5,{"$nulls":4},6,null,1,"icon_item_100031",null,null,"Item_desc_100613","阿育王武器-图纸"]
[100614,"Item_name_100614","阿育王头盔-图纸","梵金圣盔",1,null,null,4,5,{"$nulls":4},6,null,1,"icon_item_100032",null,null,"Item_desc_100614","阿育王头盔-图纸"]
[100615,"Item_name_100615","阿育王护甲-图纸","仁王圣甲",1,null,null,4,5,{"$nulls":4},6,null,1,"icon_item_100033",null,null,"Item_desc_100615","阿育王护甲-图纸"]
[100616,"Item_name_100616","阿育王战靴-图纸","福德行靴",1,null,null,4,5,{"$nulls":4},6,null,1,"icon_item_100034",null,null,"Item_desc_100616","阿育王战靴-图纸"]
[100617,"Item_name_100617","斯巴达克斯武器-图纸","角斗双刃",1,null,null,4,5,{"$nulls":4},6,null,1,"icon_item_100031",null,null,"Item_desc_100617","斯巴达克斯武器-图纸"]
[100618,"Item_name_100618","斯巴达克斯头盔-图纸","角斗铁盔",1,null,null,4,5,{"$nulls":4},6,null,1,"icon_item_100032",null,null,"Item_desc_100618","斯巴达克斯头盔-图纸"]
[100619,"Item_name_100619","斯巴达克斯护甲-图纸","斗士硬甲",1,null,null,4,5,{"$nulls":4},6,null,1,"icon_item_100033",null,null,"Item_desc_100619","斯巴达克斯护甲-图纸"]
[100620,"Item_name_100620","斯巴达克斯战靴-图纸","竞技战靴",1,null,null,4,5,{"$nulls":4},6,null,1,"icon_item_100034",null,null,"Item_desc_100620","斯巴达克斯战靴-图纸"]
[100621,"Item_name_100621","吉尔伽美什武器-图纸","史诗王斧",1,null,null,4,5,{"$nulls":4},6,null,1,"icon_item_100031",null,null,"Item_desc_100621","吉尔伽美什武器-图纸"]
[100622,"Item_name_100622","吉尔伽美什头盔-图纸","史诗王盔",1,null,null,4,5,{"$nulls":4},6,null,1,"icon_item_100032",null,null,"Item_desc_100622","吉尔伽美什头盔-图纸"]
[100623,"Item_name_100623","吉尔伽美什护甲-图纸","众神王甲",1,null,null,4,5,{"$nulls":4},6,null,1,"icon_item_100033",null,null,"Item_desc_100623","吉尔伽美什护甲-图纸"]
[100624,{"$f":"\"Item_name_\"&A107","v":"Item_name_100624"},"吉尔伽美什战靴-图纸","古王战靴",1,null,null,4,5,{"$nulls":4},6,null,1,"icon_item_100034",null,null,{"$f":"\"Item_desc_\"&A107","v":"Item_desc_100624"},"吉尔伽美什战靴-图纸"]
[100625,"Item_name_100625","丰臣秀吉武器-图纸","太阁名刀",1,null,null,4,5,{"$nulls":4},6,null,1,"icon_item_100031",null,null,"Item_desc_100625","丰臣秀吉武器-图纸"]
[100626,"Item_name_100626","丰臣秀吉头盔-图纸","金桃战盔",1,null,null,4,5,{"$nulls":4},6,null,1,"icon_item_100032",null,null,"Item_desc_100626","丰臣秀吉头盔-图纸"]
[100627,"Item_name_100627","丰臣秀吉护甲-图纸","太阁武甲",1,null,null,4,5,{"$nulls":4},6,null,1,"icon_item_100033",null,null,"Item_desc_100627","丰臣秀吉护甲-图纸"]
[100628,"Item_name_100628","丰臣秀吉战靴-图纸","樱纹战靴",1,null,null,4,5,{"$nulls":4},6,null,1,"icon_item_100034",null,null,"Item_desc_100628","丰臣秀吉战靴-图纸"]
[100629,"Item_name_100629","理查一世武器-图纸","狮心圣剑",1,null,null,4,5,{"$nulls":4},6,null,1,"icon_item_100031",null,null,"Item_desc_100629","理查一世武器-图纸"]
[100630,"Item_name_100630","理查一世头盔-图纸","狮纹圣盔",1,null,null,4,5,{"$nulls":4},6,null,1,"icon_item_100032",null,null,"Item_desc_100630","理查一世头盔-图纸"]
[100631,"Item_name_100631","理查一世护甲-图纸","圣殿骑甲",1,null,null,4,5,{"$nulls":4},6,null,1,"icon_item_100033",null,null,"Item_desc_100631","理查一世护甲-图纸"]
[100632,"Item_name_100632","理查一世战靴-图纸","圣光骑靴",1,null,null,4,5,{"$nulls":4},6,null,1,"icon_item_100034",null,null,"Item_desc_100632","理查一世战靴-图纸"]
[100633,"Item_name_100633","布狄卡武器-图纸","自由巨剑",1,null,null,4,5,{"$nulls":4},6,null,1,"icon_item_100031",null,null,"Item_desc_100633","布狄卡武器-图纸"]
[100634,"Item_name_100634","布狄卡头盔-图纸","苏格兰盔",1,null,null,4,5,{"$nulls":4},6,null,1,"icon_item_100032",null,null,"Item_desc_100634","布狄卡头盔-图纸"]
[100635,"Item_name_100635","布狄卡护甲-图纸","蓝勇战甲",1,null,null,4,5,{"$nulls":4},6,null,1,"icon_item_100033",null,null,"Item_desc_100635","布狄卡护甲-图纸"]
[100636,"Item_name_100636","布狄卡战靴-图纸","自由战靴",1,null,null,4,5,{"$nulls":4},6,null,1,"icon_item_100034",null,null,"Item_desc_100636","布狄卡战靴-图纸"]
[100637,"Item_name_100637","威廉·华莱士武器-图纸","凯尔战矛",1,null,null,4,5,{"$nulls":4},6,null,1,"icon_item_100031",null,null,"Item_desc_100637","威廉·华莱士武器-图纸"]
[100638,"Item_name_100638","威廉·华莱士头盔-图纸","女王战盔",1,null,null,4,5,{"$nulls":4},6,null,1,"icon_item_100032",null,null,"Item_desc_100638","威廉·华莱士头盔-图纸"]
[100639,"Item_name_100639","威廉·华莱士护甲-图纸","凯尔战甲",1,null,null,4,5,{"$nulls":4},6,null,1,"icon_item_100033",null,null,"Item_desc_100639","威廉·华莱士护甲-图纸"]
[100640,"Item_name_100640","威廉·华莱士战靴-图纸","荒原战靴",1,null,null,4,5,{"$nulls":4},6,null,1,"icon_item_100034",null,null,"Item_desc_100640","威廉·华莱士战靴-图纸"]
[100641,"Item_name_100641","织田信长武器-图纸","第六天刀",1,null,null,4,5,{"$nulls":4},6,null,1,"icon_item_100031",null,null,"Item_desc_100641","织田信长武器-图纸"]
[100642,"Item_name_100642","织田信长头盔-图纸","修罗鬼盔",1,null,null,4,5,{"$nulls":4},6,null,1,"icon_item_100032",null,null,"Item_desc_100642","织田信长头盔-图纸"]
[100643,"Item_name_100643","织田信长护甲-图纸","红莲武甲",1,null,null,4,5,{"$nulls":4},6,null,1,"icon_item_100033",null,null,"Item_desc_100643","织田信长护甲-图纸"]
[100644,"Item_name_100644","织田信长战靴-图纸","烈火战靴",1,null,null,4,5,{"$nulls":4},6,null,1,"icon_item_100034",null,null,"Item_desc_100644","织田信长战靴-图纸"]
[100645,"Item_name_100645","亚历山大武器-图纸","征服王剑",1,null,null,4,5,{"$nulls":4},6,null,1,"icon_item_100031",null,null,"Item_desc_100645","亚历山大武器-图纸"]
[100646,"Item_name_100646","亚历山大头盔-图纸","马其战盔",1,null,null,4,5,{"$nulls":4},6,null,1,"icon_item_100032",null,null,"Item_desc_100646","亚历山大头盔-图纸"]
[100647,"Item_name_100647","亚历山大护甲-图纸","赫利战甲",1,null,null,4,5,{"$nulls":4},6,null,1,"icon_item_100033",null,null,"Item_desc_100647","亚历山大护甲-图纸"]
[100648,"Item_name_100648","亚历山大战靴-图纸","征途军靴",1,null,null,4,5,{"$nulls":4},6,null,1,"icon_item_100034",null,null,"Item_desc_100648","亚历山大战靴-图纸"]
[100649,"Item_name_100649","萨拉丁武器-图纸","圣城弯刀",1,null,null,4,5,{"$nulls":4},6,null,1,"icon_item_100031",null,null,"Item_desc_100649","萨拉丁武器-图纸"]
[100650,"Item_name_100650","萨拉丁头盔-图纸","沙狮战盔",1,null,null,4,5,{"$nulls":4},6,null,1,"icon_item_100032",null,null,"Item_desc_100650","萨拉丁头盔-图纸"]
[100651,"Item_name_100651","萨拉丁护甲-图纸","圣军骑甲",1,null,null,4,5,{"$nulls":4},6,null,1,"icon_item_100033",null,null,"Item_desc_100651","萨拉丁护甲-图纸"]
[100652,"Item_name_100652","萨拉丁战靴-图纸","沙海骑靴",1,null,null,4,5,{"$nulls":4},6,null,1,"icon_item_100034",null,null,"Item_desc_100652","萨拉丁战靴-图纸"]
[100653,"Item_name_100653","汉尼拔·巴卡武器-图纸","豹魂战刃",1,null,null,4,5,{"$nulls":4},6,null,1,"icon_item_100031",null,null,"Item_desc_100653","汉尼拔·巴卡武器-图纸"]
[100654,"Item_name_100654","汉尼拔·巴卡头盔-图纸","迦太守盔",1,null,null,4,5,{"$nulls":4},6,null,1,"icon_item_100032",null,null,"Item_desc_100654","汉尼拔·巴卡头盔-图纸"]
[100655,"Item_name_100655","汉尼拔·巴卡护甲-图纸","阿尔卑甲",1,null,null,4,5,{"$nulls":4},6,null,1,"icon_item_100033",null,null,"Item_desc_100655","汉尼拔·巴卡护甲-图纸"]
[100656,"Item_name_100656","汉尼拔·巴卡战靴-图纸","山征战靴",1,null,null,4,5,{"$nulls":4},6,null,1,"icon_item_100034",null,null,"Item_desc_100656","汉尼拔·巴卡战靴-图纸"]
[100657,"Item_name_100657","花木兰武器-图纸","木兰战刃",1,null,null,4,5,{"$nulls":4},6,null,1,"icon_item_100031",null,null,"Item_desc_100657","花木兰武器-图纸"]
[100658,{"$f":"\"Item_name_\"&A141","v":"Item_name_100658"},"花木兰头盔-图纸","花魂战盔",1,null,null,4,5,{"$nulls":4},6,null,1,"icon_item_100032",null,null,{"$f":"\"Item_desc_\"&A141","v":"Item_desc_100658"},"花木兰头盔-图纸"]
[100659,"Item_name_100659","花木兰护甲-图纸","巾帼战甲",1,null,null,4,5,{"$nulls":4},6,null,1,"icon_item_100033",null,null,"Item_desc_100659","花木兰护甲-图纸"]
[100660,"Item_name_100660","花木兰战靴-图纸","木兰战靴",1,null,null,4,5,{"$nulls":4},6,null,1,"icon_item_100034",null,null,"Item_desc_100660","花木兰战靴-图纸"]
[100661,"Item_name_100661","兰甘亨武器-图纸","暹罗王刃",1,null,null,4,5,{"$nulls":4},6,null,1,"icon_item_100031",null,null,"Item_desc_100661","兰甘亨武器-图纸"]
[100662,"Item_name_100662","兰甘亨头盔-图纸","象纹王盔",1,null,null,4,5,{"$nulls":4},6,null,1,"icon_item_100032",null,null,"Item_desc_100662","兰甘亨头盔-图纸"]
[100663,"Item_name_100663","兰甘亨护甲-图纸","暹罗王甲",1,null,null,4,5,{"$nulls":4},6,null,1,"icon_item_100033",null,null,"Item_desc_100663","兰甘亨护甲-图纸"]
[100664,"Item_name_100664","兰甘亨战靴-图纸","金象战靴",1,null,null,4,5,{"$nulls":4},6,null,1,"icon_item_100034",null,null,"Item_desc_100664","兰甘亨战靴-图纸"]
[100665,"Item_name_100665","腓特烈一世武器-图纸","红胡巨剑",1,null,null,4,5,{"$nulls":4},6,null,1,"icon_item_100031",null,null,"Item_desc_100665","腓特烈一世武器-图纸"]
[100666,"Item_name_100666","腓特烈一世头盔-图纸","帝国铁盔",1,null,null,4,5,{"$nulls":4},6,null,1,"icon_item_100032",null,null,"Item_desc_100666","腓特烈一世头盔-图纸"]
[100667,"Item_name_100667","腓特烈一世护甲-图纸","皇家重甲",1,null,null,4,5,{"$nulls":4},6,null,1,"icon_item_100033",null,null,"Item_desc_100667","腓特烈一世护甲-图纸"]
[100668,"Item_name_100668","腓特烈一世战靴-图纸","红胡军靴",1,null,null,4,5,{"$nulls":4},6,null,1,"icon_item_100034",null,null,"Item_desc_100668","腓特烈一世战靴-图纸"]
[100669,"Item_name_100669","凯撒武器-图纸","罗马军剑",1,null,null,4,5,{"$nulls":4},6,null,1,"icon_item_100031",null,null,"Item_desc_100669","凯撒武器-图纸"]
[100670,"Item_name_100670","凯撒头盔-图纸","罗马鹰盔",1,null,null,4,5,{"$nulls":4},6,null,1,"icon_item_100032",null,null,"Item_desc_100670","凯撒头盔-图纸"]
[100671,"Item_name_100671","凯撒护甲-图纸","帝国军甲",1,null,null,4,5,{"$nulls":4},6,null,1,"icon_item_100033",null,null,"Item_desc_100671","凯撒护甲-图纸"]
[100672,"Item_name_100672","凯撒战靴-图纸","军团行靴",1,null,null,4,5,{"$nulls":4},6,null,1,"icon_item_100034",null,null,"Item_desc_100672","凯撒战靴-图纸"]
[100673,"Item_name_100673","贞德武器-图纸","圣焰长枪",1,null,null,4,5,{"$nulls":4},6,null,1,"icon_item_100031",null,null,"Item_desc_100673","贞德武器-图纸"]
[100674,"Item_name_100674","贞德头盔-图纸","圣洁铁盔",1,null,null,4,5,{"$nulls":4},6,null,1,"icon_item_100032",null,null,"Item_desc_100674","贞德头盔-图纸"]
[100675,"Item_name_100675","贞德护甲-图纸","圣女白甲",1,null,null,4,5,{"$nulls":4},6,null,1,"icon_item_100033",null,null,"Item_desc_100675","贞德护甲-图纸"]
[100676,"Item_name_100676","贞德战靴-图纸","圣光靴甲",1,null,null,4,5,{"$nulls":4},6,null,1,"icon_item_100034",null,null,"Item_desc_100676","贞德战靴-图纸"]
[100677,"Item_name_100677","旃陀罗笈多武器-图纸","孔雀王刃",1,null,null,4,5,{"$nulls":4},6,null,1,"icon_item_100031",null,null,"Item_desc_100677","旃陀罗笈多武器-图纸"]
[100678,"Item_name_100678","旃陀罗笈多头盔-图纸","孔雀王盔",1,null,null,4,5,{"$nulls":4},6,null,1,"icon_item_100032",null,null,"Item_desc_100678","旃陀罗笈多头盔-图纸"]
[100679,"Item_name_100679","旃陀罗笈多护甲-图纸","天成王甲",1,null,null,4,5,{"$nulls":4},6,null,1,"icon_item_100033",null,null,"Item_desc_100679","旃陀罗笈多护甲-图纸"]
[100680,"Item_name_100680","旃陀罗笈多战靴-图纸","王朝战靴",1,null,null,4,5,{"$nulls":4},6,null,1,"icon_item_100034",null,null,"Item_desc_100680","旃陀罗笈多战靴-图纸"]
[100681,"Item_name_100681","图特摩斯三世武器-图纸","法老战刃",1,null,null,4,5,{"$nulls":4},6,null,1,"icon_item_100031",null,null,"Item_desc_100681","图特摩斯三世武器-图纸"]
[100682,"Item_name_100682","图特摩斯三世头盔-图纸","圣鹰战盔",1,null,null,4,5,{"$nulls":4},6,null,1,"icon_item_100032",null,null,"Item_desc_100682","图特摩斯三世头盔-图纸"]
[100683,"Item_name_100683","图特摩斯三世护甲-图纸","法老金甲",1,null,null,4,5,{"$nulls":4},6,null,1,"icon_item_100033",null,null,"Item_desc_100683","图特摩斯三世护甲-图纸"]
[100684,"Item_name_100684","图特摩斯三世战靴-图纸","尼罗战靴",1,null,null,4,5,{"$nulls":4},6,null,1,"icon_item_100034",null,null,"Item_desc_100684","图特摩斯三世战靴-图纸"]
[100685,"Item_name_100685","阿尔特米西亚武器-图纸","海灵弓弦",1,null,null,4,5,{"$nulls":4},6,null,1,"icon_item_100031",null,null,"Item_desc_100685","阿尔特米西亚武器-图纸"]
[100686,"Item_name_100686","阿尔特米西亚头盔-图纸","海怒战盔",1,null,null,4,5,{"$nulls":4},6,null,1,"icon_item_100032",null,null,"Item_desc_100686","阿尔特米西亚头盔-图纸"]
[100687,"Item_name_100687","阿尔特米西亚护甲-图纸","海神战甲",1,null,null,4,5,{"$nulls":4},6,null,1,"icon_item_100033",null,null,"Item_desc_100687","阿尔特米西亚护甲-图纸"]
[100688,{"$f":"\"Item_name_\"&A171","v":"Item_name_100688"},"阿尔特米西亚战靴-图纸","海风战靴",1,null,null,4,5,{"$nulls":4},6,null,1,"icon_item_100034",null,null,{"$f":"\"Item_desc_\"&A171","v":"Item_desc_100688"},"阿尔特米西亚战靴-图纸"]
[100689,"Item_name_100689","克里斯蒂娜武器-图纸","北境慧剑",1,null,null,4,5,{"$nulls":4},6,null,1,"icon_item_100031",null,null,"Item_desc_100689","克里斯蒂娜武器-图纸"]
[100690,"Item_name_100690","克里斯蒂娜头盔-图纸","北风女盔",1,null,null,4,5,{"$nulls":4},6,null,1,"icon_item_100032",null,null,"Item_desc_100690","克里斯蒂娜头盔-图纸"]
[100691,"Item_name_100691","克里斯蒂娜护甲-图纸","智慧王甲",1,null,null,4,5,{"$nulls":4},6,null,1,"icon_item_100033",null,null,"Item_desc_100691","克里斯蒂娜护甲-图纸"]
[100692,"Item_name_100692","克里斯蒂娜战靴-图纸","北境行靴",1,null,null,4,5,{"$nulls":4},6,null,1,"icon_item_100034",null,null,"Item_desc_100692","克里斯蒂娜战靴-图纸"]
[100693,"Item_name_100693","伯里克利武器-图纸","雅典长矛",1,null,null,4,5,{"$nulls":4},6,null,1,"icon_item_100031",null,null,"Item_desc_100693","伯里克利武器-图纸"]
[100694,"Item_name_100694","伯里克利头盔-图纸","雅典守盔",1,null,null,4,5,{"$nulls":4},6,null,1,"icon_item_100032",null,null,"Item_desc_100694","伯里克利头盔-图纸"]
[100695,"Item_name_100695","伯里克利护甲-图纸","城邦护甲",1,null,null,4,5,{"$nulls":4},6,null,1,"icon_item_100033",null,null,"Item_desc_100695","伯里克利护甲-图纸"]
[100696,"Item_name_100696","伯里克利战靴-图纸","学者行靴",1,null,null,4,5,{"$nulls":4},6,null,1,"icon_item_100034",null,null,"Item_desc_100696","伯里克利战靴-图纸"]
[100697,"Item_name_100697","大卫王武器-图纸","圣辉王弓",1,null,null,4,5,{"$nulls":4},6,null,1,"icon_item_100031",null,null,"Item_desc_100697","大卫王武器-图纸"]
[100698,"Item_name_100698","大卫王头盔-图纸","圣城王盔",1,null,null,4,5,{"$nulls":4},6,null,1,"icon_item_100032",null,null,"Item_desc_100698","大卫王头盔-图纸"]
[100699,"Item_name_100699","大卫王护甲-图纸","牧者圣甲",1,null,null,4,5,{"$nulls":4},6,null,1,"icon_item_100033",null,null,"Item_desc_100699","大卫王护甲-图纸"]
[100700,"Item_name_100700","大卫王战靴-图纸","圣城行靴",1,null,null,4,5,{"$nulls":4},6,null,1,"icon_item_100034",null,null,"Item_desc_100700","大卫王战靴-图纸"]
[100701,"Item_name_100701","克利欧佩特拉武器-图纸","蛇权权杖",1,null,null,4,5,{"$nulls":4},6,null,1,"icon_item_100031",null,null,"Item_desc_100701","克利欧佩特拉武器-图纸"]
[100702,"Item_name_100702","克利欧佩特拉头盔-图纸","蛇冠金盔",1,null,null,4,5,{"$nulls":4},6,null,1,"icon_item_100032",null,null,"Item_desc_100702","克利欧佩特拉头盔-图纸"]
[100703,"Item_name_100703","克利欧佩特拉护甲-图纸","尼罗圣甲",1,null,null,4,5,{"$nulls":4},6,null,1,"icon_item_100033",null,null,"Item_desc_100703","克利欧佩特拉护甲-图纸"]
[100704,"Item_name_100704","克利欧佩特拉战靴-图纸","蛇纹金靴",1,null,null,4,5,{"$nulls":4},6,null,1,"icon_item_100034",null,null,"Item_desc_100704","克利欧佩特拉战靴-图纸"]
[100705,"Item_name_100705","狄多女王武器-图纸","海港王刃",1,null,null,4,5,{"$nulls":4},6,null,1,"icon_item_100031",null,null,"Item_desc_100705","狄多女王武器-图纸"]
[100706,"Item_name_100706","狄多女王头盔-图纸","腓城王盔",1,null,null,4,5,{"$nulls":4},6,null,1,"icon_item_100032",null,null,"Item_desc_100706","狄多女王头盔-图纸"]
[100707,"Item_name_100707","狄多女王护甲-图纸","女王海甲",1,null,null,4,5,{"$nulls":4},6,null,1,"icon_item_100033",null,null,"Item_desc_100707","狄多女王护甲-图纸"]
[100708,"Item_name_100708","狄多女王战靴-图纸","腓城行靴",1,null,null,4,5,{"$nulls":4},6,null,1,"icon_item_100034",null,null,"Item_desc_100708","狄多女王战靴-图纸"]
[100709,"Item_name_100709","托米丽司武器-图纸","草原王刃",1,null,null,4,5,{"$nulls":4},6,null,1,"icon_item_100031",null,null,"Item_desc_100709","托米丽司武器-图纸"]
[100710,"Item_name_100710","托米丽司头盔-图纸","草原鹰盔",1,null,null,4,5,{"$nulls":4},6,null,1,"icon_item_100032",null,null,"Item_desc_100710","托米丽司头盔-图纸"]
[100711,"Item_name_100711","托米丽司护甲-图纸","草原战甲",1,null,null,4,5,{"$nulls":4},6,null,1,"icon_item_100033",null,null,"Item_desc_100711","托米丽司护甲-图纸"]
[100712,"Item_name_100712","托米丽司战靴-图纸","草原战靴",1,null,null,4,5,{"$nulls":4},6,null,1,"icon_item_100034",null,null,"Item_desc_100712","托米丽司战靴-图纸"]
[100713,"Item_name_100713","特丽布瓦娜武器-图纸","尼泊王刃",1,null,null,4,5,{"$nulls":4},6,null,1,"icon_item_100031",null,null,"Item_desc_100713","特丽布瓦娜武器-图纸"]
[100714,"Item_name_100714","特丽布瓦娜头盔-图纸","山鹰女盔",1,null,null,4,5,{"$nulls":4},6,null,1,"icon_item_100032",null,null,"Item_desc_100714","特丽布瓦娜头盔-图纸"]
[100715,"Item_name_100715","特丽布瓦娜护甲-图纸","山国圣甲",1,null,null,4,5,{"$nulls":4},6,null,1,"icon_item_100033",null,null,"Item_desc_100715","特丽布瓦娜护甲-图纸"]
[100716,"Item_name_100716","特丽布瓦娜战靴-图纸","山风行靴",1,null,null,4,5,{"$nulls":4},6,null,1,"icon_item_100034",null,null,"Item_desc_100716","特丽布瓦娜战靴-图纸"]
[100717,"Item_name_100717","善德女王武器-图纸","藏地圣杖",1,null,null,4,5,{"$nulls":4},6,null,1,"icon_item_100031",null,null,"Item_desc_100717","善德女王武器-图纸"]
[100718,"Item_name_100718","善德女王头盔-图纸","雪域女盔",1,null,null,4,5,{"$nulls":4},6,null,1,"icon_item_100032",null,null,"Item_desc_100718","善德女王头盔-图纸"]
[100719,"Item_name_100719","善德女王护甲-图纸","藏地圣甲",1,null,null,4,5,{"$nulls":4},6,null,1,"icon_item_100033",null,null,"Item_desc_100719","善德女王护甲-图纸"]
[100720,{"$f":"\"Item_name_\"&A203","v":"Item_name_100720"},"善德女王战靴-图纸","雪域行靴",1,null,null,4,5,{"$nulls":4},6,null,1,"icon_item_100034",null,null,{"$f":"\"Item_desc_\"&A203","v":"Item_desc_100720"},"善德女王战靴-图纸"]
[119001,"Item_name_119001","绿色装备箱",{"$f":"C204","v":"绿色装备箱"},1,null,null,2,null,1,null,null,null,2,null,null,"icon_item_119997",null,null,"Item_desc_119001","绿色装备箱"]
[119002,"Item_name_119002","蓝色装备箱","蓝色装备箱",1,null,null,2,null,1,null,null,null,3,null,null,"icon_item_119998",null,null,"Item_desc_119002","蓝色装备箱"]
[119003,"Item_name_119003","紫色装备箱","紫色装备箱",1,null,null,2,null,1,null,null,null,4,null,null,"icon_item_119999",null,null,"Item_desc_119003","紫色装备箱"]
[119004,"Item_name_119004","橙色装备箱","橙色装备箱",1,null,null,2,null,1,null,null,null,5,null,null,"icon_item_119997",null,null,"Item_desc_119004","橙色装备箱"]
[119005,"Item_name_119005","绿色步兵装备箱","绿色步兵装备箱",1,null,null,2,null,1,null,null,null,2,null,null,"icon_item_119998",null,null,"Item_desc_119005","绿色步兵装备箱"]
[119006,"Item_name_119006","绿色骑兵装备箱","绿色骑兵装备箱",1,null,null,2,null,1,null,null,null,2,null,null,"icon_item_119999",null,null,"Item_desc_119006","绿色骑兵装备箱"]
[119007,"Item_name_119007","绿色弓兵装备箱","绿色弓兵装备箱",1,null,null,2,null,1,null,null,null,2,null,null,"icon_item_119997",null,null,"Item_desc_119007","绿色弓兵装备箱"]
[119008,"Item_name_119008","蓝色步兵装备箱","蓝色步兵装备箱",1,null,null,2,null,1,null,null,null,3,null,null,"icon_item_119998",null,null,"Item_desc_119008","蓝色步兵装备箱"]
[119009,"Item_name_119009","蓝色骑兵装备箱",{"$f":"C212","v":"蓝色骑兵装备箱"},1,null,null,2,null,1,null,null,null,3,null,null,"icon_item_119999",null,null,"Item_desc_119009","蓝色骑兵装备箱"]
[119010,"Item_name_119010","蓝色弓兵装备箱","蓝色弓兵装备箱",1,null,null,2,null,1,null,null,null,3,null,null,"icon_item_119997",null,null,"Item_desc_119010","蓝色弓兵装备箱"]
[119011,"Item_name_119011","紫色步兵装备箱","紫色步兵装备箱",1,null,null,2,null,1,null,null,null,4,null,null,"icon_item_119998",null,null,"Item_desc_119011","紫色步兵装备箱"]
[119012,"Item_name_119012","紫色骑兵装备箱","紫色骑兵装备箱",1,null,null,2,null,1,null,null,null,4,null,null,"icon_item_119999",null,null,"Item_desc_119012","紫色骑兵装备箱"]
[119013,"Item_name_119013","紫色弓兵装备箱","紫色弓兵装备箱",1,null,null,2,null,1,null,null,null,4,null,null,"icon_item_119997",null,null,"Item_desc_119013","紫色弓兵装备箱"]
[119014,"Item_name_119014","橙色步兵装备箱","橙色步兵装备箱",1,null,null,2,null,1,null,null,null,5,null,null,"icon_item_119998",null,null,"Item_desc_119014","橙色步兵装备箱"]
[119015,"Item_name_119015","橙色骑兵装备箱","橙色骑兵装备箱",1,null,null,2,null,1,null,null,null,5,null,null,"icon_item_119999",null,null,"Item_desc_119015","橙色骑兵装备箱"]
[119016,"Item_name_119016","橙色弓兵装备箱","橙色弓兵装备箱",1,null,null,2,null,1,null,null,null,5,null,null,"icon_item_119997",null,null,"Item_desc_119016","橙色弓兵装备箱"]
[119017,"Item_name_119017","暗金图纸宝箱","暗金图纸宝箱",1,null,null,2,null,1,null,null,null,6,null,null,"icon_item_blueprint_box02",null,null,"Item_desc_119017","暗金图纸宝箱"]
[119018,"Item_name_119018","步兵暗金图纸宝箱","步兵暗金图纸宝箱",1,null,null,2,null,1,null,null,null,6,null,null,"icon_item_119999",null,null,"Item_desc_119018","步兵暗金图纸宝箱"]
[119019,"Item_name_119019","骑兵暗金图纸宝箱","骑兵暗金图纸宝箱",1,null,null,2,null,1,null,null,null,6,null,null,"icon_item_119997",null,null,"Item_desc_119019","骑兵暗金图纸宝箱"]
[119020,"Item_name_119020","弓兵暗金图纸宝箱","弓兵暗金图纸宝箱",1,null,null,2,null,1,null,null,null,6,null,null,"icon_item_119998",null,null,"Item_desc_119020","弓兵暗金图纸宝箱"]
[119997,"Item_name_119997","随机测试宝箱","随机测试宝箱",1,null,null,2,null,1,null,null,null,6,null,null,"icon_item_119997",null,null,"Item_desc_119997","随机测试宝箱"]
[119998,"Item_name_119998","选择测试宝箱","选择测试宝箱",1,null,null,2,null,1,null,null,null,6,null,null,"icon_item_119998",null,null,"Item_desc_119998","选择测试宝箱"]
[119999,"Item_name_119999","ALL测试宝箱","ALL测试宝箱",1,null,null,2,null,1,null,null,null,6,null,null,"icon_item_119999",null,null,"Item_desc_119999","ALL测试宝箱"]
[120001,"Item_name_120001","活力药剂","恢复80体力",1,null,null,2,null,1,null,null,null,6,null,null,"icon_item_stamina_potion",null,null,"Item_desc_120001","活力药剂"]
[120002,"Item_name_120002","军团蜜酒","恢复2000兵力",1,null,null,2,null,1,null,null,null,6,null,null,"icon_item_120002",null,null,"Item_desc_120002","军团蜜酒"]
[120003,"Item_name_120003","生命之息","消除部队重伤状态",1,null,null,2,null,1,null,null,null,6,null,null,"icon_item_healing _potion",null,null,"Item_desc_120003","生命之息"]
[130001,"Item_name_130001","抽卡券","抽卡券",1,null,null,2,{"$nulls":5},5,null,null,"icon_item_10001",null,null,"Item_desc_130001","抽卡券"]
[140001,"Item_name_140001","VIP点数*10","VIP点数*10",1,null,null,2,null,1,"  ",null,null,6,null,null,"icon_item_120001",null,null,"Item_desc_140001","VIP点数*10"]
[140002,"Item_name_140002","VIP点数*50","VIP点数*50",1,null,null,2,null,1,null,null,null,6,null,null,"icon_item_120002",null,null,"Item_desc_140002","VIP点数*50"]
[140003,"Item_name_140003","VIP点数*100","VIP点数*100",1,null,null,2,null,1,null,null,null,6,null,null,"icon_item_120003",null,null,"Item_desc_140003","VIP点数*100"]
[140004,"Item_name_140004","VIP点数*500","VIP点数*500",1,null,null,2,null,1,null,null,null,6,null,null,"icon_item_120002",null,null,"Item_desc_140004","VIP点数*500"]
[140005,{"$f":"\"Item_name_\"&A235","v":"Item_name_140005"},"VIP点数*1000","VIP点数*1000",1,null,null,2,null,1,null,null,null,6,null,null,"icon_item_120003",null,null,"Item_desc_140005","VIP点数*1000"]
[150001,"Item_name_150001","VIP天数*1d","VIP天数*1d",1,null,null,2,null,1,null,null,null,6,null,null,"icon_item_120001",null,null,"Item_desc_150001","VIP天数*1d"]
[150002,"Item_name_150002","VIP点数*7d","VIP点数*7d",1,null,null,2,null,1,null,null,null,6,null,null,"icon_item_120002",null,null,"Item_desc_150002","VIP点数*7d"]
[150003,"Item_name_150003","VIP点数*30d","VIP点数*30d",1,null,null,2,null,1,null,null,null,6,null,null,"icon_item_120003",null,null,"Item_desc_150003","VIP点数*30d"]
[200101,"Hero_name_1","秦始皇","秦始皇",2,null,null,3,{"$nulls":5},5,null,null,"hero_QinShiHuang_Icon",null,null,"Item_desc_200101"]
[200102,"Hero_name_2","李舜臣","李舜臣",2,null,null,3,{"$nulls":5},5,null,null,"hero_LiShunChen_Icon",null,null,"Item_desc_200102"]
[200103,"Hero_name_3","居鲁士大帝","居鲁士大帝",2,null,null,3,{"$nulls":5},5,null,null,"hero_CyrusTheGreat_Icon",null,null,"Item_desc_200103"]
[200104,"Hero_name_4","阿育王","阿育王",2,null,null,3,{"$nulls":5},5,null,null,"hero_Ashoka_Icon",null,null,"Item_desc_200104"]
[200105,"Hero_name_5","斯巴达克斯","斯巴达克斯",2,null,null,3,{"$nulls":5},5,null,null,"hero_Spartacus_Icon",null,null,"Item_desc_200105"]
[200106,"Hero_name_6","吉尔伽美什","吉尔伽美什",2,null,null,3,{"$nulls":5},5,null,null,"hero_Gilgamesh_Icon",null,null,"Item_desc_200106"]
[200107,"Hero_name_7","丰臣秀吉","丰臣秀吉",2,null,null,3,{"$nulls":5},5,null,null,"hero_ToyotomiHideyoshi_Icon",null,null,"Item_desc_200107"]
[200108,"Hero_name_8","理查一世","理查一世",2,null,null,3,{"$nulls":5},5,null,null,"hero_RichardI_Icon",null,null,"Item_desc_200108"]
[200109,"Hero_name_9","布狄卡","布狄卡",2,null,null,3,{"$nulls":5},5,null,null,"hero_Boudica_Icon",null,null,"Item_desc_200109"]
[200110,"Hero_name_10","威廉·华莱士","威廉·华莱士",2,null,null,3,{"$nulls":5},5,null,null,"hero_WilliamWallace_Icon",null,null,"Item_desc_200110"]
[200201,"Hero_name_11","织田信长","织田信长",2,null,null,3,{"$nulls":5},5,null,null,"hero_OdaNobunaga_Icon",null,null,"Item_desc_200201"]
[200202,"Hero_name_12","亚历山大","亚历山大",2,null,null,3,{"$nulls":5},5,null,null,"hero_Alexander_Icon",null,null,"Item_desc_200202"]
[200203,"Hero_name_13","萨拉丁","萨拉丁",2,null,null,3,{"$nulls":5},5,null,null,"hero_Saladin_Icon",null,null,"Item_desc_200203"]
[200204,"Hero_name_14","汉尼拔·巴卡","汉尼拔·巴卡",2,null,null,3,{"$nulls":5},5,null,null,"hero_HannibalBarca_Icon",null,null,"Item_desc_200204"]
[200205,"Hero_name_15","花木兰","花木兰",2,null,null,3,{"$nulls":5},5,null,null,"hero_Mulan_Icon",null,null,"Item_desc_200205"]
[200206,"Hero_name_16","兰甘亨","兰甘亨",2,null,null,3,{"$nulls":5},5,null,null,"hero_Ramkhamhaeng_Icon",null,null,"Item_desc_200206"]
[200207,"Hero_name_17","腓特烈一世","腓特烈一世",2,null,null,3,{"$nulls":5},5,null,null,"hero_FrederickI_Icon",null,null,"Item_desc_200207"]
[200208,"Hero_name_18","凯撒","凯撒",2,null,null,3,{"$nulls":5},5,null,null,"hero_JuliusCaesar_Icon",null,null,"Item_desc_200208"]
[200209,"Hero_name_19","贞德","贞德",2,null,null,3,{"$nulls":5},5,null,null,"hero_JoanOfArc_Icon",null,null,"Item_desc_200209"]
[200210,"Hero_name_20","旃陀罗笈多","旃陀罗笈多",2,null,null,3,{"$nulls":5},5,null,null,"hero_Chandragupta_Icon",null,null,"Item_desc_200210"]
[200301,"Hero_name_21","图特摩斯三世","图特摩斯三世",2,null,null,3,{"$nulls":5},5,null,null,"hero_ThutmoseIII_Icon",null,null,"Item_desc_200301"]
[200302,"Hero_name_22","阿尔特米西亚","阿尔特米西亚",2,null,null,3,{"$nulls":5},5,null,null,"hero_Artemisia_Icon",null,null,"Item_desc_200302"]
[200303,"Hero_name_23","克里斯蒂娜","克里斯蒂娜",2,null,null,3,{"$nulls":5},5,null,null,"hero_Christina_Icon",null,null,"Item_desc_200303"]
[200304,"Hero_name_24","伯里克利","伯里克利",2,null,null,3,{"$nulls":5},5,null,null,"hero_Pericles_Icon",null,null,"Item_desc_200304"]
[200305,"Hero_name_25","大卫王","大卫王",2,null,null,3,{"$nulls":5},5,null,null,"hero_KingDavid_Icon",null,null,"Item_desc_200305"]
[200306,"Hero_name_26","克利欧佩特拉","克利欧佩特拉",2,null,null,3,{"$nulls":5},5,null,null,"hero_Cleopatra_Icon",null,null,"Item_desc_200306"]
[200307,"Hero_name_27","狄多女王","狄多女王",2,null,null,3,{"$nulls":5},5,null,null,"hero_Dido_Icon",null,null,"Item_desc_200307"]
[200308,"Hero_name_28","托米丽司","托米丽司",2,null,null,3,{"$nulls":5},5,null,null,"hero_Tomyris_Icon",null,null,"Item_desc_200308"]
[200309,"Hero_name_29","特丽布瓦娜","特丽布瓦娜",2,null,null,3,{"$nulls":5},5,null,null,"hero_Tribhuwana_Icon",null,null,"Item_desc_200309"]
[200310,"Hero_name_30","善德女王","善德女王",2,null,null,3,{"$nulls":5},5,null,null,"hero_Seondeok_Icon",null,null,"Item_desc_200310"]
[210001,"Item_name_210001","白银宝箱","白银宝箱",1,null,null,2,null,1,null,null,null,4,null,null,"icon_item_119999",null,null,"Item_desc_210001","白银宝箱"]
[210002,"Item_name_210002","黄金宝箱","黄金宝箱",1,null,null,2,null,1,null,null,null,5,null,null,"icon_item_119999",null,null,"Item_desc_210002","黄金宝箱"]
[210003,"Item_name_210003","暗金宝箱","暗金宝箱",1,null,null,2,null,1,null,null,null,6,null,null,"icon_item_119998",null,null,"Item_desc_210003","暗金宝箱"]
[210004,{"$f":"\"Item_name_\"&A272","v":"Item_name_210004"},"暗金图纸宝箱",{"$f":"C272","v":"暗金图纸宝箱"},1,null,null,2,null,1,null,null,null,6,null,null,"icon_item_119999",null,null,"Item_desc_210004","暗金图纸宝箱"]
[210005,"Item_name_210005","英雄随机宝箱·一",{"$f":"C273","v":"英雄随机宝箱·一"},1,null,null,2,null,1,null,null,null,6,null,null,"icon_item_119999",null,null,"Item_desc_210005","开启主线英雄"]
[210006,{"$f":"\"Item_name_\"&A274","v":"Item_name_210006"},"英雄随机宝箱·二",{"$f":"C274","v":"英雄随机宝箱·二"},1,null,null,2,null,1,null,null,null,6,null,null,"icon_item_119999",null,null,"Item_desc_210006","开启非主线英雄"]
[311001,"Item_name_311001","粗铁短剑","武器（白步）",3,null,null,3,{"$nulls":5},1,null,null,"icon_equip_normal_weapon1",null,null,"Item_desc_311001","最常见的短剑，锋利度有限"]
[311002,"Item_name_311002","铆接半盔","头盔（白步）",3,null,null,3,{"$nulls":5},1,null,null,"icon_equip_normal_helmet1",null,null,"Item_desc_311002","简易金属半盔，提供基础防护"]
[311003,"Item_name_311003","皮衬布甲","护甲（白步）",3,null,null,3,{"$nulls":5},1,null,null,"icon_equip_normal_armor1",null,null,"Item_desc_311003","轻便的皮布甲，能略微抵御攻击"]
[311004,"Item_name_311004","锁链布靴","战靴（白步）",3,null,null,3,{"$nulls":5},1,null,null,"icon_equip_normal_shoes1",null,null,"Item_desc_311004","布靴外覆锁链，坚固而耐穿"]
[312001,"Item_name_312001","粗铁短剑","武器（白骑）",3,null,null,3,{"$nulls":5},1,null,null,"icon_equip_normal_weapon2",null,null,"Item_desc_312001","最常见的短剑，锋利度有限"]
[312002,"Item_name_312002","铆接半盔","头盔（白骑）",3,null,null,3,{"$nulls":5},1,null,null,"icon_equip_normal_helmet2",null,null,"Item_desc_312002","简易金属半盔，提供基础防护"]
[312003,"Item_name_312003","皮衬布甲","护甲（白骑）",3,null,null,3,{"$nulls":5},1,null,null,"icon_equip_normal_armor2",null,null,"Item_desc_312003","轻便的皮布甲，能略微抵御攻击"]
[312004,"Item_name_312004","锁链布靴","战靴（白骑）",3,null,null,3,{"$nulls":5},1,null,null,"icon_equip_normal_shoes2",null,null,"Item_desc_312004","布靴外覆锁链，坚固而耐穿"]
[313001,"Item_name_313001","粗铁短剑","武器（白弓）",3,null,null,3,{"$nulls":5},1,null,null,"icon_equip_normal_weapon3",null,null,"Item_desc_313001","最常见的短剑，锋利度有限"]
[313002,"Item_name_313002","铆接半盔","头盔（白弓）",3,null,null,3,{"$nulls":5},1,null,null,"icon_equip_normal_helmet3",null,null,"Item_desc_313002","简易金属半盔，提供基础防护"]
[313003,"Item_name_313003","皮衬布甲","护甲（白弓）",3,null,null,3,{"$nulls":5},1,null,null,"icon_equip_normal_armor3",null,null,"Item_desc_313003","轻便的皮布甲，能略微抵御攻击"]
[313004,"Item_name_313004","锁链布靴","战靴（白弓）",3,null,null,3,{"$nulls":5},1,null,null,"icon_equip_normal_shoes3",null,null,"Item_desc_313004","布靴外覆锁链，坚固而耐穿"]
[321001,"Item_name_321001","精铁阔剑","武器（绿步）",3,null,null,3,{"$nulls":5},2,null,null,"icon_equip_rare_weapon1",null,null,"Item_desc_321001"]
[321002,"Item_name_321002","护鼻圆盔","头盔（绿步）",3,null,null,3,{"$nulls":5},2,null,null,"icon_equip_rare_helmet1",null,null,"Item_desc_321002"]
[321003,"Item_name_321003","精铁半身甲","护甲（绿步）",3,null,null,3,{"$nulls":5},2,null,null,"icon_equip_rare_armor1",null,null,"Item_desc_321003"]
[321004,"Item_name_321004","铁护脚靴","战靴（绿步）",3,null,null,3,{"$nulls":5},2,null,null,"icon_equip_rare_shoes1",null,null,"Item_desc_321004"]
[322001,"Item_name_322001","精铁骑枪","武器（绿骑）",3,null,null,3,{"$nulls":5},2,null,null,"icon_equip_rare_weapon2",null,null,"Item_desc_322001"]
[322002,"Item_name_322002","护鼻颊盔","头盔（绿骑）",3,null,null,3,{"$nulls":5},2,null,null,"icon_equip_rare_helmet2",null,null,"Item_desc_322002"]
[322003,"Item_name_322003","骑兵胸甲","护甲（绿骑）",3,null,null,3,{"$nulls":5},2,null,null,"icon_equip_rare_armor2",null,null,"Item_desc_322003"]
[322004,"Item_name_322004","铁片马靴","战靴（绿骑）",3,null,null,3,{"$nulls":5},2,null,null,"icon_equip_rare_shoes2",null,null,"Item_desc_322004"]
[323001,"Item_name_323001","硬木长弓","武器（绿弓）",3,null,null,3,{"$nulls":5},2,null,null,"icon_equip_rare_weapon3",null,null,"Item_desc_323001"]
[323002,"Item_name_323002","皮革兜帽盔","头盔（绿弓）",3,null,null,3,{"$nulls":5},2,null,null,"icon_equip_rare_helmet3",null,null,"Item_desc_323002"]
[323003,"Item_name_323003","链甲皮衫","护甲（绿弓）",3,null,null,3,{"$nulls":5},2,null,null,"icon_equip_rare_armor3",null,null,"Item_desc_323003"]
[323004,"Item_name_323004","加厚猎靴","战靴（绿弓）",3,null,null,3,{"$nulls":5},2,null,null,"icon_equip_rare_shoes3",null,null,"Item_desc_323004"]
[331001,"Item_name_331001","蚀刻钢剑","武器（蓝步）",3,null,null,3,{"$nulls":5},3,null,null,"icon_equip_uncommon_weapon1",null,null,"Item_desc_331001"]
[331002,"Item_name_331002","覆面巨盔","头盔（蓝步）",3,null,null,3,{"$nulls":5},3,null,null,"icon_equip_uncommon_helmet1",null,null,"Item_desc_331002"]
[331003,"Item_name_331003","纹饰板甲","护甲（蓝步）",3,null,null,3,{"$nulls":5},3,null,null,"icon_equip_uncommon_armor1",null,null,"Item_desc_331003"]
[331004,"Item_name_331004","全胫甲靴","战靴（蓝步）",3,null,null,3,{"$nulls":5},3,null,null,"icon_equip_uncommon_shoes1",null,null,"Item_desc_331004"]
[332001,"Item_name_332001","银纹骑枪","武器（蓝骑）",3,null,null,3,{"$nulls":5},3,null,null,"icon_equip_uncommon_weapon2",null,null,"Item_desc_332001"]
[332002,"Item_name_332002","狭缝桶盔","头盔（蓝骑）",3,null,null,3,{"$nulls":5},3,null,null,"icon_equip_uncommon_helmet2",null,null,"Item_desc_332002"]
[332003,{"$f":"\"Item_name_\"&A305","v":"Item_name_332003"},"浮雕板甲","护甲（蓝骑）",3,null,null,3,{"$nulls":5},3,null,null,"icon_equip_uncommon_armor2",null,null,"Item_desc_332003"]
[332004,"Item_name_332004","钢制马靴","战靴（蓝骑）",3,null,null,3,{"$nulls":5},3,null,null,"icon_equip_uncommon_shoes2",null,null,"Item_desc_332004"]
[333001,"Item_name_333001","复合猎弓","武器（蓝弓）",3,null,null,3,{"$nulls":5},3,null,null,"icon_equip_uncommon_weapon3",null,null,"Item_desc_333001"]
[333002,"Item_name_333002","露颊轻盔","头盔（蓝弓）",3,null,null,3,{"$nulls":5},3,null,null,"icon_equip_uncommon_helmet3",null,null,"Item_desc_333002"]
[333003,"Item_name_333003","披风链甲衫","护甲（蓝弓）",3,null,null,3,{"$nulls":5},3,null,null,"icon_equip_uncommon_armor3",null,null,"Item_desc_333003"]
[333004,"Item_name_333004","护趾皮靴","战靴（蓝弓）",3,null,null,3,{"$nulls":5},3,null,null,"icon_equip_uncommon_shoes3",null,null,"Item_desc_333004"]
[341001,"Item_name_341001","雕金骑士剑","武器（紫步）",3,null,null,3,{"$nulls":5},4,null,null,"icon_equip_epic_weapon1",null,null,"Item_desc_341001"]
[341002,"Item_name_341002","金徽巨盔","头盔（紫步）",3,null,null,3,{"$nulls":5},4,null,null,"icon_equip_epic_helmet1",null,null,"Item_desc_341002"]
[341003,"Item_name_341003","银金板甲","护甲（紫步）",3,null,null,3,{"$nulls":5},4,null,null,"icon_equip_epic_armor1",null,null,"Item_desc_341003"]
[341004,"Item_name_341004","金纹胫甲","战靴（紫步）",3,null,null,3,{"$nulls":5},4,null,null,"icon_equip_epic_shoes1",null,null,"Item_desc_341004"]
[342001,"Item_name_342001","金刃战斧","武器（紫骑）",3,null,null,3,{"$nulls":5},4,null,null,"icon_equip_epic_weapon3",null,null,"Item_desc_342001"]
[342002,"Item_name_342002","狮面盔","头盔（紫骑）",3,null,null,3,{"$nulls":5},4,null,null,"icon_equip_epic_helmet3",null,null,"Item_desc_342002"]
[342003,"Item_name_342003","符文板甲","护甲（紫骑）",3,null,null,3,{"$nulls":5},4,null,null,"icon_equip_epic_armor3",null,null,"Item_desc_342003"]
[342004,"Item_name_342004","重装金踝靴","战靴（紫骑）",3,null,null,3,{"$nulls":5},4,null,null,"icon_equip_epic_shoes3",null,null,"Item_desc_342004"]
[343001,"Item_name_343001","金线骑枪","武器（紫弓）",3,null,null,3,{"$nulls":5},4,null,null,"icon_equip_epic_weapon5",null,null,"Item_desc_343001"]
[343002,"Item_name_343002","尖顶羽盔","头盔（紫弓）",3,null,null,3,{"$nulls":5},4,null,null,"icon_equip_epic_helmet5",null,null,"Item_desc_343002"]
[343003,"Item_name_343003","金边马铠","护甲（紫弓）",3,null,null,3,{"$nulls":5},4,null,null,"icon_equip_epic_armor5",null,null,"Item_desc_343003"]
[343004,"Item_name_343004","花卉马靴","战靴（紫弓）",3,null,null,3,{"$nulls":5},4,null,null,"icon_equip_epic_shoes5",null,null,"Item_desc_343004"]
[351001,"Item_name_351001","圣剑“裁决”","武器（橙步）",3,null,null,3,{"$nulls":5},5,null,null,"icon_equip_legendary_weapon1",null,null,"Item_desc_351001","蕴含圣光的裁决之剑，正义的象征"]
[351002,"Item_name_351002","龙首盔","头盔（橙步）",3,null,null,3,{"$nulls":5},5,null,null,"icon_equip_legendary_helmet1",null,null,"Item_desc_351002","以龙首为饰的头盔，象征勇武与威严"]
[351003,"Item_name_351003","黑金圣铠","护甲（橙步）",3,null,null,3,{"$nulls":5},5,null,null,"icon_equip_legendary_armor1",null,null,"Item_desc_351003","黑金铸造的圣铠，攻防兼备"]
[351004,"Item_name_351004","狮爪战靴","战靴（橙步）",3,null,null,3,{"$nulls":5},5,null,null,"icon_equip_legendary_shoes1",null,null,"Item_desc_351004","饰以狮爪花纹的战靴，步伐稳健"]
[352001,"Item_name_352001","圣枪“隆基努斯”","武器（橙骑）",3,null,null,3,{"$nulls":5},5,null,null,"icon_equip_legendary_weapon4",null,null,"Item_desc_352001"]
[352002,"Item_name_352002","审判面甲","头盔（橙骑）",3,null,null,3,{"$nulls":5},5,null,null,"icon_equip_legendary_helmet4",null,null,"Item_desc_352002"]
[352003,"Item_name_352003","天使泣甲","护甲（橙骑）",3,null,null,3,{"$nulls":5},5,null,null,"icon_equip_legendary_armor4",null,null,"Item_desc_352003"]
[352004,"Item_name_352004","天堂步履","战靴（橙骑）",3,null,null,3,{"$nulls":5},5,null,null,"icon_equip_legendary_shoes4",null,null,"Item_desc_352004"]
[353001,"Item_name_353001","银弦弓","武器（橙弓）",3,null,null,3,{"$nulls":5},5,null,null,"icon_equip_legendary_weapon7",null,null,"Item_desc_353001"]
[353002,"Item_name_353002","月影兜帽","头盔（橙弓）",3,null,null,3,{"$nulls":5},5,null,null,"icon_equip_legendary_helmet7",null,null,"Item_desc_353002"]
[353003,"Item_name_353003","夜辉轻甲","护甲（橙弓）",3,null,null,3,{"$nulls":5},5,null,null,"icon_equip_legendary_armor7",null,null,"Item_desc_353003"]
[353004,"Item_name_353004","星影猎靴","战靴（橙弓）",3,null,null,3,{"$nulls":5},5,null,null,"icon_equip_legendary_shoes7",null,null,"Item_desc_353004"]
[361011,"Item_name_361011","承天龙渊","武器-秦始皇",3,null,null,3,{"$nulls":5},6,null,1,"icon_equip_mythic_QinShiHuang_weapon",null,null,"Item_desc_361011","铭刻“受命于天”的帝王宝剑，象征天命正统"]
[361012,"Item_name_361012","十二天冕","头盔-秦始皇",3,null,null,3,{"$nulls":5},6,null,1,"icon_equip_mythic_QinShiHuang_helmet",null,null,"Item_desc_361012","悬垂白玉旒珠的冕冠，至尊无上"]
[361013,{"$f":"\"Item_name_\"&A337","v":"Item_name_361013"},"玄龙御甲","护甲-秦始皇",3,null,null,3,{"$nulls":5},6,null,1,"icon_equip_mythic_QinShiHuang_armor",null,null,"Item_desc_361013","玄鸟与夔龙纹护佑的御用甲胄"]
[361014,"Item_name_361014","云纹天履","战靴-秦始皇",3,null,null,3,{"$nulls":5},6,null,1,"icon_equip_mythic_QinShiHuang_shoes",null,null,"Item_desc_361014","绣有如意云纹的帝王御靴，步履如登云霄"]
[361021,"Item_name_361021","龟舰战刃","武器-李舜臣",3,null,null,3,{"$nulls":5},6,null,1,"icon_equip_mythic_LiShunChen_weapon",null,null,"Item_desc_361021"]
[361022,"Item_name_361022","海魂战盔","头盔-李舜臣",3,null,null,3,{"$nulls":5},6,null,1,"icon_equip_mythic_LiShunChen_helmet",null,null,"Item_desc_361022"]
[361023,"Item_name_361023","护国海甲","护甲-李舜臣",3,null,null,3,{"$nulls":5},6,null,1,"icon_equip_mythic_LiShunChen_armor",null,null,"Item_desc_361023"]
[361024,"Item_name_361024","水军战靴","战靴-李舜臣",3,null,null,3,{"$nulls":5},6,null,1,"icon_equip_mythic_LiShunChen_shoes",null,null,"Item_desc_361024"]
[361031,"Item_name_361031","波斯王刃","武器-居鲁士大帝",3,null,null,3,{"$nulls":5},6,null,1,"icon_equip_mythic_CyrusTheGreat_weapon",null,null,"Item_desc_361031"]
[361032,"Item_name_361032","旭日王盔","头盔-居鲁士大帝",3,null,null,3,{"$nulls":5},6,null,1,"icon_equip_mythic_CyrusTheGreat_helmet",null,null,"Item_desc_361032"]
[361033,"Item_name_361033","波斯王甲","护甲-居鲁士大帝",3,null,null,3,{"$nulls":5},6,null,1,"icon_equip_mythic_CyrusTheGreat_armor",null,null,"Item_desc_361033"]
[361034,"Item_name_361034","王庭战靴","战靴-居鲁士大帝",3,null,null,3,{"$nulls":5},6,null,1,"icon_equip_mythic_CyrusTheGreat_shoes",null,null,"Item_desc_361034"]
[361041,"Item_name_361041","法轮之剑","武器-阿育王",3,null,null,3,{"$nulls":5},6,null,1,"icon_equip_mythic_Ashoka_weapon",null,null,"Item_desc_361041"]
[361042,"Item_name_361042","梵金圣盔","头盔-阿育王",3,null,null,3,{"$nulls":5},6,null,1,"icon_equip_mythic_Ashoka_helmet",null,null,"Item_desc_361042"]
[361043,"Item_name_361043","仁王圣甲","护甲-阿育王",3,null,null,3,{"$nulls":5},6,null,1,"icon_equip_mythic_Ashoka_armor",null,null,"Item_desc_361043"]
[361044,"Item_name_361044","福德行靴","战靴-阿育王",3,null,null,3,{"$nulls":5},6,null,1,"icon_equip_mythic_Ashoka_shoes",null,null,"Item_desc_361044"]
[361051,"Item_name_361051","角斗双刃","武器-斯巴达克斯",3,null,null,3,{"$nulls":5},6,null,1,"icon_equip_mythic_Spartacus_weapon",null,null,"Item_desc_361051"]
[361052,"Item_name_361052","角斗铁盔","头盔-斯巴达克斯",3,null,null,3,{"$nulls":5},6,null,1,"icon_equip_mythic_Spartacus_helmet",null,null,"Item_desc_361052"]
[361053,"Item_name_361053","斗士硬甲","护甲-斯巴达克斯",3,null,null,3,{"$nulls":5},6,null,1,"icon_equip_mythic_Spartacus_armor",null,null,"Item_desc_361053"]
[361054,"Item_name_361054","竞技战靴","战靴-斯巴达克斯",3,null,null,3,{"$nulls":5},6,null,1,"icon_equip_mythic_Spartacus_shoes",null,null,"Item_desc_361054"]
[361061,"Item_name_361061","史诗王斧","武器-吉尔伽美什",3,null,null,3,{"$nulls":5},6,null,1,"icon_equip_mythic_Gilgamesh_weapon",null,null,"Item_desc_361061"]
[361062,"Item_name_361062","史诗王盔","头盔-吉尔伽美什",3,null,null,3,{"$nulls":5},6,null,1,"icon_equip_mythic_Gilgamesh_helmet",null,null,"Item_desc_361062"]
[361063,"Item_name_361063","众神王甲","护甲-吉尔伽美什",3,null,null,3,{"$nulls":5},6,null,1,"icon_equip_mythic_Gilgamesh_armor",null,null,"Item_desc_361063"]
[361064,"Item_name_361064","古王战靴","战靴-吉尔伽美什",3,null,null,3,{"$nulls":5},6,null,1,"icon_equip_mythic_Gilgamesh_shoes",null,null,"Item_desc_361064"]
[361071,"Item_name_361071","太阁名刀","武器-丰臣秀吉",3,null,null,3,{"$nulls":5},6,null,1,"icon_equip_mythic_ToyotomiHideyoshi_weapon",null,null,"Item_desc_361071"]
[361072,"Item_name_361072","金桃战盔","头盔-丰臣秀吉",3,null,null,3,{"$nulls":5},6,null,1,"icon_equip_mythic_ToyotomiHideyoshi_helmet",null,null,"Item_desc_361072"]
[361073,"Item_name_361073","太阁武甲","护甲-丰臣秀吉",3,null,null,3,{"$nulls":5},6,null,1,"icon_equip_mythic_ToyotomiHideyoshi_armor",null,null,"Item_desc_361073"]
[361074,"Item_name_361074","樱纹战靴","战靴-丰臣秀吉",3,null,null,3,{"$nulls":5},6,null,1,"icon_equip_mythic_ToyotomiHideyoshi_shoes",null,null,"Item_desc_361074"]
[361081,"Item_name_361081","狮心圣剑","武器-理查一世",3,null,null,3,{"$nulls":5},6,null,1,"icon_equip_mythic_RichardI_weapon",null,null,"Item_desc_361081"]
[361082,"Item_name_361082","狮纹圣盔","头盔-理查一世",3,null,null,3,{"$nulls":5},6,null,1,"icon_equip_mythic_RichardI_helmet",null,null,"Item_desc_361082"]
[361083,"Item_name_361083","圣殿骑甲","护甲-理查一世",3,null,null,3,{"$nulls":5},6,null,1,"icon_equip_mythic_RichardI_armor",null,null,"Item_desc_361083"]
[361084,"Item_name_361084","圣光骑靴","战靴-理查一世",3,null,null,3,{"$nulls":5},6,null,1,"icon_equip_mythic_RichardI_shoes",null,null,"Item_desc_361084"]
[361091,"Item_name_361091","自由巨剑","武器-布狄卡",3,null,null,3,{"$nulls":5},6,null,1,"icon_equip_mythic_Boudica_weapon",null,null,"Item_desc_361091"]
[361092,"Item_name_361092","苏格兰盔","头盔-布狄卡",3,null,null,3,{"$nulls":5},6,null,1,"icon_equip_mythic_Boudica_helmet",null,null,"Item_desc_361092"]
[361093,{"$f":"\"Item_name_\"&A369","v":"Item_name_361093"},"蓝勇战甲","护甲-布狄卡",3,null,null,3,{"$nulls":5},6,null,1,"icon_equip_mythic_Boudica_armor",null,null,"Item_desc_361093"]
[361094,"Item_name_361094","自由战靴","战靴-布狄卡",3,null,null,3,{"$nulls":5},6,null,1,"icon_equip_mythic_Boudica_shoes",null,null,"Item_desc_361094"]
[361101,"Item_name_361101","凯尔战矛","武器-威廉·华莱士",3,null,null,3,{"$nulls":5},6,null,1,"icon_equip_mythic_WilliamWallace_weapon",null,null,"Item_desc_361101"]
[361102,"Item_name_361102","女王战盔","头盔-威廉·华莱士",3,null,null,3,{"$nulls":5},6,null,1,"icon_equip_mythic_WilliamWallace_helmet",null,null,"Item_desc_361102"]
[361103,"Item_name_361103","凯尔战甲","护甲-威廉·华莱士",3,null,null,3,{"$nulls":5},6,null,1,"icon_equip_mythic_WilliamWallace_armor",null,null,"Item_desc_361103"]
[361104,"Item_name_361104","荒原战靴","战靴-威廉·华莱士",3,null,null,3,{"$nulls":5},6,null,1,"icon_equip_mythic_WilliamWallace_shoes",null,null,"Item_desc_361104"]
[362011,"Item_name_362011","第六天刀","武器-织田信长",3,null,null,3,{"$nulls":5},6,null,1,"icon_equip_mythic_OdaNobunaga_weapon",null,null,"Item_desc_362011"]
[362012,"Item_name_362012","修罗鬼盔","头盔-织田信长",3,null,null,3,{"$nulls":5},6,null,1,"icon_equip_mythic_OdaNobunaga_helmet",null,null,"Item_desc_362012"]
[362013,"Item_name_362013","红莲武甲","护甲-织田信长",3,null,null,3,{"$nulls":5},6,null,1,"icon_equip_mythic_OdaNobunaga_armor",null,null,"Item_desc_362013"]
[362014,"Item_name_362014","烈火战靴","战靴-织田信长",3,null,null,3,{"$nulls":5},6,null,1,"icon_equip_mythic_OdaNobunaga_shoes",null,null,"Item_desc_362014"]
[362021,"Item_name_362021","征服王剑","武器-亚历山大",3,null,null,3,{"$nulls":5},6,null,1,"icon_equip_mythic_Alexander_weapon",null,null,"Item_desc_362021"]
[362022,"Item_name_362022","马其战盔","头盔-亚历山大",3,null,null,3,{"$nulls":5},6,null,1,"icon_equip_mythic_Alexander_helmet",null,null,"Item_desc_362022"]
[362023,"Item_name_362023","赫利战甲","护甲-亚历山大",3,null,null,3,{"$nulls":5},6,null,1,"icon_equip_mythic_Alexander_armor",null,null,"Item_desc_362023"]
[362024,"Item_name_362024","征途军靴","战靴-亚历山大",3,null,null,3,{"$nulls":5},6,null,1,"icon_equip_mythic_Alexander_shoes",null,null,"Item_desc_362024"]
[362031,"Item_name_362031","圣城弯刀","武器-萨拉丁",3,null,null,3,{"$nulls":5},6,null,1,"icon_equip_mythic_Saladin_weapon",null,null,"Item_desc_362031"]
[362032,"Item_name_362032","沙狮战盔","头盔-萨拉丁",3,null,null,3,{"$nulls":5},6,null,1,"icon_equip_mythic_Saladin_helmet",null,null,"Item_desc_362032"]
[362033,"Item_name_362033","圣军骑甲","护甲-萨拉丁",3,null,null,3,{"$nulls":5},6,null,1,"icon_equip_mythic_Saladin_armor",null,null,"Item_desc_362033"]
[362034,"Item_name_362034","沙海骑靴","战靴-萨拉丁",3,null,null,3,{"$nulls":5},6,null,1,"icon_equip_mythic_Saladin_shoes",null,null,"Item_desc_362034"]
[362041,"Item_name_362041","豹魂战刃","武器-汉尼拔·巴卡",3,null,null,3,{"$nulls":5},6,null,1,"icon_equip_mythic_HannibalBarca_weapon",null,null,"Item_desc_362041"]
[362042,"Item_name_362042","迦太守盔","头盔-汉尼拔·巴卡",3,null,null,3,{"$nulls":5},6,null,1,"icon_equip_mythic_HannibalBarca_helmet",null,null,"Item_desc_362042"]
[362043,"Item_name_362043","阿尔卑甲","护甲-汉尼拔·巴卡",3,null,null,3,{"$nulls":5},6,null,1,"icon_equip_mythic_HannibalBarca_armor",null,null,"Item_desc_362043"]
[362044,"Item_name_362044","山征战靴","战靴-汉尼拔·巴卡",3,null,null,3,{"$nulls":5},6,null,1,"icon_equip_mythic_HannibalBarca_shoes",null,null,"Item_desc_362044"]
[362051,"Item_name_362051","木兰战刃","武器-花木兰",3,null,null,3,{"$nulls":5},6,null,1,"icon_equip_mythic_Mulan_weapon",null,null,"Item_desc_362051"]
[362052,"Item_name_362052","花魂战盔","头盔-花木兰",3,null,null,3,{"$nulls":5},6,null,1,"icon_equip_mythic_Mulan_helmet",null,null,"Item_desc_362052"]
[362053,"Item_name_362053","巾帼战甲","护甲-花木兰",3,null,null,3,{"$nulls":5},6,null,1,"icon_equip_mythic_Mulan_armor",null,null,"Item_desc_362053"]
[362054,"Item_name_362054","木兰战靴","战靴-花木兰",3,null,null,3,{"$nulls":5},6,null,1,"icon_equip_mythic_Mulan_shoes",null,null,"Item_desc_362054"]
[362061,"Item_name_362061","暹罗王刃","武器-兰甘亨",3,null,null,3,{"$nulls":5},6,null,1,"icon_equip_mythic_Ramkhamhaeng_weapon",null,null,"Item_desc_362061"]
[362062,"Item_name_362062","象纹王盔","头盔-兰甘亨",3,null,null,3,{"$nulls":5},6,null,1,"icon_equip_mythic_Ramkhamhaeng_helmet",null,null,"Item_desc_362062"]
[362063,"Item_name_362063","暹罗王甲","护甲-兰甘亨",3,null,null,3,{"$nulls":5},6,null,1,"icon_equip_mythic_Ramkhamhaeng_armor",null,null,"Item_desc_362063"]
[362064,"Item_name_362064","金象战靴","战靴-兰甘亨",3,null,null,3,{"$nulls":5},6,null,1,"icon_equip_mythic_Ramkhamhaeng_shoes",null,null,"Item_desc_362064"]
[362071,"Item_name_362071","红胡巨剑","武器-腓特烈一世",3,null,null,3,{"$nulls":5},6,null,1,"icon_equip_legendary_weapon5",null,null,"Item_desc_362071"]
[362072,"Item_name_362072","帝国铁盔","头盔-腓特烈一世",3,null,null,3,{"$nulls":5},6,null,1,"icon_equip_legendary_helmet5",null,null,"Item_desc_362072"]
[362073,{"$f":"\"Item_name_\"&A401","v":"Item_name_362073"},"皇家重甲","护甲-腓特烈一世",3,null,null,3,{"$nulls":5},6,null,1,"icon_equip_legendary_armor5",null,null,"Item_desc_362073"]
[362074,"Item_name_362074","红胡军靴","战靴-腓特烈一世",3,null,null,3,{"$nulls":5},6,null,1,"icon_equip_legendary_shoes5",null,null,"Item_desc_362074"]
[362081,"Item_name_362081","罗马军剑","武器-凯撒",3,null,null,3,{"$nulls":5},6,null,1,"icon_equip_mythic_JuliusCaesar_weapon",null,null,"Item_desc_362081"]
[362082,"Item_name_362082","罗马鹰盔","头盔-凯撒",3,null,null,3,{"$nulls":5},6,null,1,"icon_equip_mythic_JuliusCaesar_helmet",null,null,"Item_desc_362082"]
[362083,"Item_name_362083","帝国军甲","护甲-凯撒",3,null,null,3,{"$nulls":5},6,null,1,"icon_equip_mythic_JuliusCaesar_armor",null,null,"Item_desc_362083"]
[362084,"Item_name_362084","军团行靴","战靴-凯撒",3,null,null,3,{"$nulls":5},6,null,1,"icon_equip_mythic_JuliusCaesar_shoes",null,null,"Item_desc_362084"]
[362091,"Item_name_362091","圣焰长枪","武器-贞德",3,null,null,3,{"$nulls":5},6,null,1,"icon_equip_mythic_JoanOfArc_weapon",null,null,"Item_desc_362091"]
[362092,"Item_name_362092","圣洁铁盔","头盔-贞德",3,null,null,3,{"$nulls":5},6,null,1,"icon_equip_mythic_JoanOfArc_helmet",null,null,"Item_desc_362092"]
[362093,"Item_name_362093","圣女白甲","护甲-贞德",3,null,null,3,{"$nulls":5},6,null,1,"icon_equip_mythic_JoanOfArc_armor",null,null,"Item_desc_362093"]
[362094,"Item_name_362094","圣光靴甲","战靴-贞德",3,null,null,3,{"$nulls":5},6,null,1,"icon_equip_mythic_JoanOfArc_shoes",null,null,"Item_desc_362094"]
[362101,"Item_name_362101","孔雀王刃","武器-旃陀罗笈多",3,null,null,3,{"$nulls":5},6,null,1,"icon_equip_mythic_Chandragupta_weapon",null,null,"Item_desc_362101"]
[362102,"Item_name_362102","孔雀王盔","头盔-旃陀罗笈多",3,null,null,3,{"$nulls":5},6,null,1,"icon_equip_mythic_Chandragupta_helmet",null,null,"Item_desc_362102"]
[362103,"Item_name_362103","天成王甲","护甲-旃陀罗笈多",3,null,null,3,{"$nulls":5},6,null,1,"icon_equip_mythic_Chandragupta_armor",null,null,"Item_desc_362103"]
[362104,"Item_name_362104","王朝战靴","战靴-旃陀罗笈多",3,null,null,3,{"$nulls":5},6,null,1,"icon_equip_mythic_Chandragupta_shoes",null,null,"Item_desc_362104"]
[363011,"Item_name_363011","法老战刃","武器-图特摩斯三世",3,null,null,3,{"$nulls":5},6,null,1,"icon_equip_mythic_ThutmoseIII_weapon",null,null,"Item_desc_363011"]
[363012,"Item_name_363012","圣鹰战盔","头盔-图特摩斯三世",3,null,null,3,{"$nulls":5},6,null,1,"icon_equip_mythic_ThutmoseIII_helmet",null,null,"Item_desc_363012"]
[363013,"Item_name_363013","法老金甲","护甲-图特摩斯三世",3,null,null,3,{"$nulls":5},6,null,1,"icon_equip_mythic_ThutmoseIII_armor",null,null,"Item_desc_363013"]
[363014,"Item_name_363014","尼罗战靴","战靴-图特摩斯三世",3,null,null,3,{"$nulls":5},6,null,1,"icon_equip_mythic_ThutmoseIII_shoes",null,null,"Item_desc_363014"]
[363021,"Item_name_363021","海灵弓弦","武器-阿尔特米西亚",3,null,null,3,{"$nulls":5},6,null,1,"icon_equip_mythic_Artemisia_weapon",null,null,"Item_desc_363021"]
[363022,"Item_name_363022","海怒战盔","头盔-阿尔特米西亚",3,null,null,3,{"$nulls":5},6,null,1,"icon_equip_mythic_Artemisia_helmet",null,null,"Item_desc_363022"]
[363023,"Item_name_363023","海神战甲","护甲-阿尔特米西亚",3,null,null,3,{"$nulls":5},6,null,1,"icon_equip_mythic_Artemisia_armor",null,null,"Item_desc_363023"]
[363024,"Item_name_363024","海风战靴","战靴-阿尔特米西亚",3,null,null,3,{"$nulls":5},6,null,1,"icon_equip_mythic_Artemisia_shoes",null,null,"Item_desc_363024"]
[363031,"Item_name_363031","北境慧剑","武器-克里斯蒂娜",3,null,null,3,{"$nulls":5},6,null,1,"icon_equip_mythic_Christina_weapon",null,null,"Item_desc_363031"]
[363032,"Item_name_363032","北风女盔","头盔-克里斯蒂娜",3,null,null,3,{"$nulls":5},6,null,1,"icon_equip_mythic_Christina_helmet",null,null,"Item_desc_363032"]
[363033,"Item_name_363033","智慧王甲","护甲-克里斯蒂娜",3,null,null,3,{"$nulls":5},6,null,1,"icon_equip_mythic_Christina_armor",null,null,"Item_desc_363033"]
[363034,"Item_name_363034","北境行靴","战靴-克里斯蒂娜",3,null,null,3,{"$nulls":5},6,null,1,"icon_equip_mythic_Christina_shoes",null,null,"Item_desc_363034"]
[363041,"Item_name_363041","雅典长矛","武器-伯里克利",3,null,null,3,{"$nulls":5},6,null,1,"icon_equip_mythic_Pericles_weapon",null,null,"Item_desc_363041"]
[363042,"Item_name_363042","雅典守盔","头盔-伯里克利",3,null,null,3,{"$nulls":5},6,null,1,"icon_equip_mythic_Pericles_helmet",null,null,"Item_desc_363042"]
[363043,"Item_name_363043","城邦护甲","护甲-伯里克利",3,null,null,3,{"$nulls":5},6,null,1,"icon_equip_mythic_Pericles_armor",null,null,"Item_desc_363043"]
[363044,"Item_name_363044","学者行靴","战靴-伯里克利",3,null,null,3,{"$nulls":5},6,null,1,"icon_equip_mythic_Pericles_shoes",null,null,"Item_desc_363044"]
[363051,"Item_name_363051","圣辉王弓","武器-大卫王",3,null,null,3,{"$nulls":5},6,null,1,"icon_equip_mythic_KingDavid_weapon",null,null,"Item_desc_363051"]
[363052,"Item_name_363052","圣城王盔","头盔-大卫王",3,null,null,3,{"$nulls":5},6,null,1,"icon_equip_mythic_KingDavid_helmet",null,null,"Item_desc_363052"]
[363053,{"$f":"\"Item_name_\"&A433","v":"Item_name_363053"},"牧者圣甲","护甲-大卫王",3,null,null,3,{"$nulls":5},6,null,1,"icon_equip_mythic_KingDavid_armor",null,null,"Item_desc_363053"]
[363054,"Item_name_363054","圣城行靴","战靴-大卫王",3,null,null,3,{"$nulls":5},6,null,1,"icon_equip_mythic_KingDavid_shoes",null,null,"Item_desc_363054"]
[363061,"Item_name_363061","蛇权权杖","武器-克利欧佩特拉",3,null,null,3,{"$nulls":5},6,null,1,"icon_equip_mythic_Cleopatra_weapon",null,null,"Item_desc_363061"]
[363062,"Item_name_363062","蛇冠金盔","头盔-克利欧佩特拉",3,null,null,3,{"$nulls":5},6,null,1,"icon_equip_mythic_Cleopatra_helmet",null,null,"Item_desc_363062"]
[363063,"Item_name_363063","尼罗圣甲","护甲-克利欧佩特拉",3,null,null,3,{"$nulls":5},6,null,1,"icon_equip_mythic_Cleopatra_armor",null,null,"Item_desc_363063"]
[363064,"Item_name_363064","蛇纹金靴","战靴-克利欧佩特拉",3,null,null,3,{"$nulls":5},6,null,1,"icon_equip_mythic_Cleopatra_shoes",null,null,"Item_desc_363064"]
[363071,"Item_name_363071","海港王刃","武器-狄多女王",3,null,null,3,{"$nulls":5},6,null,1,"icon_equip_legendary_weapon8",null,null,"Item_desc_363071"]
[363072,"Item_name_363072","腓城王盔","头盔-狄多女王",3,null,null,3,{"$nulls":5},6,null,1,"icon_equip_legendary_helmet8",null,null,"Item_desc_363072"]
[363073,"Item_name_363073","女王海甲","护甲-狄多女王",3,null,null,3,{"$nulls":5},6,null,1,"icon_equip_legendary_armor8",null,null,"Item_desc_363073"]
[363074,"Item_name_363074","腓城行靴","战靴-狄多女王",3,null,null,3,{"$nulls":5},6,null,1,"icon_equip_legendary_shoes8",null,null,"Item_desc_363074"]
[363081,"Item_name_363081","草原王刃","武器-托米丽司",3,null,null,3,{"$nulls":5},6,null,1,"icon_equip_mythic_Tomyris_weapon",null,null,"Item_desc_363081"]
[363082,"Item_name_363082","草原鹰盔","头盔-托米丽司",3,null,null,3,{"$nulls":5},6,null,1,"icon_equip_mythic_Tomyris_helmet",null,null,"Item_desc_363082"]
[363083,"Item_name_363083","草原战甲","护甲-托米丽司",3,null,null,3,{"$nulls":5},6,null,1,"icon_equip_mythic_Tomyris_armor",null,null,"Item_desc_363083"]
[363084,"Item_name_363084","草原战靴","战靴-托米丽司",3,null,null,3,{"$nulls":5},6,null,1,"icon_equip_mythic_Tomyris_shoes",null,null,"Item_desc_363084"]
[363091,"Item_name_363091","尼泊王刃","武器-特丽布瓦娜",3,null,null,3,{"$nulls":5},6,null,1,"icon_equip_mythic_Tribhuwana_weapon",null,null,"Item_desc_363091"]
[363092,"Item_name_363092","山鹰女盔","头盔-特丽布瓦娜",3,null,null,3,{"$nulls":5},6,null,1,"icon_equip_mythic_Tribhuwana_helmet",null,null,"Item_desc_363092"]
[363093,"Item_name_363093","山国圣甲","护甲-特丽布瓦娜",3,null,null,3,{"$nulls":5},6,null,1,"icon_equip_mythic_Tribhuwana_armor",null,null,"Item_desc_363093"]
[363094,"Item_name_363094","山风行靴","战靴-特丽布瓦娜",3,null,null,3,{"$nulls":5},6,null,1,"icon_equip_mythic_Tribhuwana_shoes",null,null,"Item_desc_363094"]
[363101,"Item_name_363101","藏地圣杖","武器-善德女王",3,null,null,3,{"$nulls":5},6,null,1,"icon_equip_mythic_Seondeok_weapon",null,null,"Item_desc_363101"]
[363102,"Item_name_363102","雪域女盔","头盔-善德女王",3,null,null,3,{"$nulls":5},6,null,1,"icon_equip_mythic_Seondeok_helmet",null,null,"Item_desc_363102"]
[363103,"Item_name_363103","藏地圣甲","护甲-善德女王",3,null,null,3,{"$nulls":5},6,null,1,"icon_equip_mythic_Seondeok_armor",null,null,"Item_desc_363103"]
[363104,"Item_name_363104","雪域行靴","护甲-善德女王",3,null,null,3,{"$nulls":5},6,null,1,"icon_equip_mythic_Seondeok_shoes",null,null,"Item_desc_363104"]

{"sheet":"资产ID范围管理","index":1,"n_rows":9,"n_cols":15,"rows_kept":9,"cut":false,"hidden":false,"merged":[[8,0,9,1],[8,2,9,3],[8,4,9,5],[10,0,11,1],[0,10,1,20],[0,6,1,9],[2,6,3,9],[4,6,5,9],[6,6,7,9],[8,6,9,9],[4,0,5,1],[4,2,5,3],[4,4,5,5],[6,0,7,1],[6,2,7,3],[6,4,7,5],[0,0,1,1],[0,2,1,3],[0,4,1,5],[2,0,3,1],[2,2,3,3],[2,4,3,5]]}
["资产类型",null,"开始ID",null,"结束ID",null,"子模块",null,null,null,"举例"]
[]
["货币",null,1,null,100000,null,"货币，积分，经验",null,null,null,"金币","钻石","任务积分","活动积分","经验点"]
[]
["普通道具",null,100001,null,200000,null,"道具，宝箱，礼包",null,null,null,"招募券","英雄碎片","进阶石","资源宝箱","英雄礼包"]
[]
["英雄",null,200001,null,300000]
[]
["装备",null,300001,null,400000,null,"装备，皮肤，坐骑，神器，宠物"]